Workbook

Sheet Hoja1
C1: MUESTRA CON 100 OBSERVACIONES
E8: Modelo 1: MCO, usando las observaciones 1-100
E9: Variable dependiente: CO_muestra1
D11: Coeficiente | E11: Desv. Típica | F11: Estadístico t | G11: valor p
C12: const | D12: =Hoja3!$M$112 -> 68060.00123 | E12: =Hoja3!$M$117 -> 31335.22653
C13: IN | D13: =Hoja3!$M$113 -> 0.6007568507 | E13: =Hoja3!$M$119 -> 0.03469276324
C15: Media de la vble. dep. | D15: =Hoja3!$L$108 -> 555719.0235 | F15: D.T. de la vble. dep. | G15: =Hoja3!$S$136 -> 275471.4335
C16: Suma de cuad. residuos | D16: =Hoja3!$Y$106 -> 1.850475199e+12 | F16: D.T. de la regresión | G16: =Hoja3!$P$112 -> 137413.2453
C17: R-cuadrado | D17: =Hoja3!$U$113 -> 0.7536826882 | F17: R-cuadrado corregido
C18: F(1, 8) | F18: Valor p (de F)
C19: Log-verosimilitud | F19: Criterio de Akaike
C20: Criterio de Schwarz | F20: Crit. de Hannan-Quinn
C42: ©Este fichero Excel ha sido preparado por el profesor Víctor E. Barrios para sus alumnos de la titulación de GFIC de la Universidad de Valencia

Sheet Hoja2
C1: Obtenga la función de regresión poblacional y represéntela.
D3: CO=b0 +b1 REN+u
D5: E(CO/REN)=b0 +b1 REN
I7: DATOS DE LA POBLACIÓN
I9: Desviaciones | J9: media | L9: Productos cruzados
C10: Consumo | D10: Renta | F10: Desviaciones media | I10: al cuadrado | L10: Desviaciones media | O10: Término de error | T10: POBLACIÓN
B11: Obser. | C11: CO | D11: REN | F11: CO | G11: REN | I11: CO | J11: REN | L11: CO*REN | N11: E(CO/REN) | O11: u | S11: RENTA | T11: CONSUMO
B12: 1 | C12: 534076.5 | D12: 570000 | F12: =+C12-C$1145 -> -16015.45791 | G12: =+D12-D$1145 -> -198480.5464 | I12: =+F12^2 -> 256494892.1 | J12: =+G12^2 -> 3.939452729e+10 | L12: =+F12*G12 -> 3178756837 | N12: =+$D$1149+$D$1150*D12 -> 421401.9837 | O12: =+C12-N12 -> 112674.5163 | R12: Individuos | S12: REN | T12: CO | U12: E(CO/REN)
B13: 2 | C13: 396951.7188 | D13: 531000 | F13: =+C13-C$1145 -> -153140.2392 | G13: =+D13-D$1145 -> -237480.5464 | I13: =+F13^2 -> 2.345193285e+10 | J13: =+G13^2 -> 5.639700991e+10 | L13: =+F13*G13 -> 3.636782767e+10 | N13: =+$D$1149+$D$1150*D13 -> 396115.3292 | O13: =+C13-N13 -> 836.3895299 | R13: 1 | S13: 570000 | T13: 534076.5 | U13: 421401.9837
B14: 3 | C14: 154712.7969 | D14: 175100 | F14: -395379.161 | G14: -593380.5464 | I14: 1.56324681e+11 | J14: 3.521004728e+11 | L14: 2.346103026e+11 | N14: 165358.3978 | O14: -10645.60094 | R14: 2 | S14: 531000 | T14: 396951.7188 | U14: 396115.3292
B15: 4 | C15: 347453.1875 | D15: 420000 | F15: -202638.7704 | G15: -348480.5464 | I15: 4.106247127e+10 | J15: 1.214386912e+11 | L15: 7.061566943e+10 | N15: 324145.6204 | O15: 23307.56715 | R15: 3 | S15: 175100 | T15: 154712.7969 | U15: 165358.3978
B16: 5 | C16: 193963.2969 | D16: 294000 | F16: -356128.661 | G16: -474480.5464 | I16: 1.268276232e+11 | J16: 2.251317889e+11 | L16: 1.689761217e+11 | N16: 242450.2751 | O16: -48486.97827 | R16: 4 | S16: 420000 | T16: 347453.1875 | U16: 324145.6204
B17: 6 | C17: 224261 | D17: 231000 | F17: -325830.9579 | G17: -537480.5464 | I17: 1.061658131e+11 | J17: 2.888853377e+11 | L17: 1.751278013e+11 | N17: 201602.6025 | O17: 22658.39745 | R17: 5 | S17: 294000 | T17: 193963.2969 | U17: 242450.2751
B18: 7 | C18: 718746.4375 | D18: 1035000 | F18: 168654.4796 | G18: 266519.4536 | I18: 2.844433349e+10 | J18: 7.103261916e+10 | L18: 4.494969975e+10 | N18: 722896.71 | O18: -4150.27253 | R18: 6 | S18: 231000 | T18: 224261 | U18: 201602.6025
B19: 8 | C19: 804264.6875 | D19: 1304400 | F19: 254172.7296 | G19: 535919.4536 | I19: 6.460377647e+10 | J19: 2.872096608e+11 | L19: 1.362161104e+11 | N19: 897569.1386 | O19: -93304.45108 | R19: 7 | S19: 1035000 | T19: 718746.4375 | U19: 722896.71
B20: 9 | C20: 410573.5 | D20: 435000 | F20: -139518.4579 | G20: -333480.5464 | I20: 1.94654001e+10 | J20: 1.112092748e+11 | L20: 4.652669157e+10 | N20: 333871.2567 | O20: 76702.24332 | R20: 8 | S20: 1304400 | T20: 804264.6875 | U20: 897569.1386
B21: 10 | C21: 669460.8125 | D21: 904185 | F21: 119368.8546 | G21: 135704.4536 | I21: 1.424892345e+10 | J21: 1.841569873e+10 | L21: 1.619888519e+10 | N21: 638079.4356 | O21: 31381.37694 | R21: 9 | S21: 435000 | T21: 410573.5 | U21: 333871.2567
B22: 11 | C22: 1166477.875 | D22: 1410000 | F22: 616385.9171 | G22: 641519.4536 | I22: 3.799315988e+11 | J22: 4.115472094e+11 | L22: 3.954235568e+11 | N22: 966037.6184 | O22: 200440.2566 | R22: 10 | S22: 904185 | T22: 669460.8125 | U22: 638079.4356
B23: 12 | C23: 670851.75 | D23: 1073340 | F23: 120759.7921 | G23: 304859.4536 | I23: 1.458292739e+10 | J23: 9.293928646e+10 | L23: 3.681476424e+10 | N23: 747755.4365 | O23: -76903.6865 | R23: 11 | S23: 1410000 | T23: 1166477.875 | U23: 966037.6184
B24: 13 | C24: 776812.4375 | D24: 1299170 | F24: 226720.4796 | G24: 530689.4536 | I24: 5.140217586e+10 | J24: 2.816312962e+11 | L24: 1.203181674e+11 | N24: 894178.1334 | O24: -117365.6959 | R24: 12 | S24: 1073340 | T24: 670851.75 | U24: 747755.4365
B25: 14 | C25: 466129.9062 | D25: 680000 | F25: -83962.05166 | G25: -88480.54638 | I25: 7049626119 | J25: 7828807087 | L25: 7429008206 | N25: 492723.3168 | O25: -26593.41055 | R25: 13 | S25: 1299170 | T25: 776812.4375 | U25: 894178.1334
B26: 15 | C26: 501561.6875 | D26: 504000 | F26: -48530.27041 | G26: -264480.5464 | I26: 2355187146 | J26: 6.994995941e+10 | L26: 1.283531243e+10 | N26: 378609.1838 | O26: 122952.5037 | R26: 14 | S26: 680000 | T26: 466129.9062 | U26: 492723.3168
B27: 16 | C27: 187070.875 | D27: 212000 | F27: -363021.0829 | G27: -556480.5464 | I27: 1.317843066e+11 | J27: 3.096705985e+11 | L27: 2.020141706e+11 | N27: 189283.4632 | O27: -2212.588192 | R27: 15 | S27: 504000 | T27: 501561.6875 | U27: 378609.1838
B28: 17 | C28: 488226.7812 | D28: 683000 | F28: -61865.17666 | G28: -85480.54638 | I28: 3827300083 | J28: 7306923809 | L28: 5288269103 | N28: 494668.4441 | O28: -6441.662817 | R28: 16 | S28: 212000 | T28: 187070.875 | U28: 189283.4632
B29: 18 | C29: 385667.2812 | D29: 427640 | F29: -164424.6767 | G29: -340840.5464 | I29: 2.70354743e+10 | J29: 1.161722781e+11 | L29: 5.604259663e+10 | N29: 329099.2111 | O29: 56568.07013 | R29: 17 | S29: 683000 | T29: 488226.7812 | U29: 494668.4441
B30: 19 | C30: 378169.7812 | D30: 391800 | F30: -171922.1767 | G30: -376680.5464 | I30: 2.955723483e+10 | J30: 1.41888234e+11 | L30: 6.475973944e+10 | N30: 305861.424 | O30: 72308.35721 | R30: 18 | S30: 427640 | T30: 385667.2812 | U30: 329099.2111
B31: 20 | C31: 1062443.75 | D31: 1410574 | F31: 512351.7921 | G31: 642093.4536 | I31: 2.625043589e+11 | J31: 4.122840032e+11 | L31: 3.289777317e+11 | N31: 966409.7861 | O31: 96033.96395 | R31: 19 | S31: 391800 | T31: 378169.7812 | U31: 305861.424
B32: 21 | C32: 295932.5625 | D32: 340384 | F32: -254159.3954 | G32: -428096.5464 | I32: 6.459699828e+10 | J32: 1.83266653e+11 | L32: 1.088047594e+11 | N32: 272524.5362 | O32: 23408.0263 | R32: 20 | S32: 1410574 | T32: 1062443.75 | U32: 966409.7861
B33: 22 | C33: 914296.625 | D33: 1436000 | F33: 364204.6671 | G33: 667519.4536 | I33: 1.326450395e+11 | J33: 4.45582221e+11 | L33: 2.431137004e+11 | N33: 982895.388 | O33: -68598.76301 | R33: 21 | S33: 340384 | T33: 295932.5625 | U33: 272524.5362
B34: 23 | C34: 947279.375 | D34: 958000 | F34: 397187.4171 | G34: 189519.4536 | I34: 1.577578443e+11 | J34: 3.59176233e+10 | L34: 7.527474227e+10 | N34: 672971.7769 | O34: 274307.5981 | R34: 22 | S34: 1436000 | T34: 914296.625 | U34: 982895.388
B35: 24 | C35: 521469.25 | D35: 540000 | F35: -28622.70791 | G35: -228480.5464 | I35: 819259408.2 | J35: 5.220336007e+10 | L35: 6539731943 | N35: 401950.711 | O35: 119518.539 | R35: 23 | S35: 958000 | T35: 947279.375 | U35: 672971.7769
B36: 25 | C36: 142627.5469 | D36: 152490 | F36: -407464.411 | G36: -615990.5464 | I36: 1.660272463e+11 | J36: 3.794443532e+11 | L36: 2.509942252e+11 | N36: 150698.622 | O36: -8071.075103 | R36: 24 | S36: 540000 | T36: 521469.25 | U36: 401950.711
B37: 26 | C37: 995292.0625 | D37: 1345369 | F37: 445200.1046 | G37: 576888.4536 | I37: 1.982031331e+11 | J37: 3.328002879e+11 | L37: 2.568307999e+11 | N37: 924132.4449 | O37: 71159.61759 | R37: 25 | S37: 152490 | T37: 142627.5469 | U37: 150698.622
B38: 27 | C38: 458931.9062 | D38: 590000 | F38: -91160.05166 | G38: -178480.5464 | I38: 8310155019 | J38: 3.185530544e+10 | L38: 1.627029583e+10 | N38: 434369.4988 | O38: 24562.40745 | R38: 26 | S38: 1345369 | T38: 995292.0625 | U38: 924132.4449
B39: 28 | C39: 186540.125 | D39: 300000 | F39: -363551.8329 | G39: -468480.5464 | I39: 1.321699352e+11 | J39: 2.194740223e+11 | L39: 1.703169613e+11 | N39: 246340.5297 | O39: -59800.40468 | R39: 27 | S39: 590000 | T39: 458931.9062 | U39: 434369.4988
B40: 29 | C40: 831097.5625 | D40: 1200000 | F40: 281005.6046 | G40: 431519.4536 | I40: 7.896414981e+10 | J40: 1.862090389e+11 | L40: 1.21259385e+11 | N40: 829878.7097 | O40: 1218.852801 | R40: 28 | S40: 300000 | T40: 186540.125 | U40: 246340.5297
B41: 30 | C41: 491854.125 | D41: 843164 | F41: -58237.83291 | G41: 74683.45362 | I41: 3391645182 | J41: 5577618245 | L41: -4349402493 | N41: 598514.8986 | O41: -106660.7736 | R41: 29 | S41: 1200000 | T41: 831097.5625 | U41: 829878.7097
B42: 31 | C42: 491573.8438 | D42: 1100000 | F42: -58518.11416 | G42: 331519.4536 | I42: 3424369685 | J42: 1.099051481e+11 | L42: -1.939989323e+10 | N42: 765041.1341 | O42: -273467.2904 | R42: 30 | S42: 843164 | T42: 491854.125 | U42: 598514.8986
B43: 32 | C43: 400049.5625 | D43: 450000 | F43: -150042.3954 | G43: -318480.5464 | I43: 2.251272042e+10 | J43: 1.014298584e+11 | L43: 4.778558407e+10 | N43: 343596.893 | O43: 56452.66948 | R43: 31 | S43: 1100000 | T43: 491573.8438 | U43: 765041.1341
B44: 33 | C44: 274925.2188 | D44: 691203 | F44: -275166.7392 | G44: -77277.54638 | I44: 7.571673434e+10 | J44: 5971819174 | L44: 2.126421045e+10 | N44: 499987.0704 | O44: -225061.8516 | R44: 32 | S44: 450000 | T44: 400049.5625 | U44: 343596.893
B45: 34 | C45: 220953.0156 | D45: 295000 | F45: -329138.9423 | G45: -473480.5464 | I45: 1.083324433e+11 | J45: 2.241838278e+11 | L45: 1.558408862e+11 | N45: 243098.6509 | O45: -22145.63528 | R45: 33 | S45: 691203 | T45: 274925.2188 | U45: 499987.0704
B46: 35 | C46: 713191.3125 | D46: 930000 | F46: 163099.3546 | G46: 161519.4536 | I46: 2.660139947e+10 | J46: 2.60885339e+10 | L46: 2.634371864e+10 | N46: 654817.2557 | O46: 58374.05681 | R46: 34 | S46: 295000 | T46: 220953.0156 | U46: 243098.6509
B47: 36 | C47: 499977.375 | D47: 840000 | F47: -50114.58291 | G47: 71519.45362 | I47: 2511471420 | J47: 5115032246 | L47: -3584167588 | N47: 596463.4377 | O47: -96486.06269 | R47: 35 | S47: 930000 | T47: 713191.3125 | U47: 654817.2557
B48: 37 | C48: 468059 | D48: 1380000 | F48: -82032.95791 | G48: 611519.4536 | I48: 6729406184 | J48: 3.739560422e+11 | L48: -5.01647496e+10 | N48: 946586.3457 | O48: -478527.3457 | R48: 36 | S48: 840000 | T48: 499977.375 | U48: 596463.4377
B49: 38 | C49: 341936.875 | D49: 1750000 | F49: -208155.0829 | G49: 981519.4536 | I49: 4.332853854e+10 | J49: 9.633804378e+11 | L49: -2.043082632e+11 | N49: 1186485.375 | O49: -844548.5003 | R49: 37 | S49: 1380000 | T49: 468059 | U49: 946586.3457
B50: 39 | C50: 592696.625 | D50: 1207500 | F50: 42604.66709 | G50: 439019.4536 | I50: 1815157658 | J50: 1.927380807e+11 | L50: 1.870427767e+10 | N50: 834741.5279 | O50: -242044.9029 | R50: 38 | S50: 1750000 | T50: 341936.875 | U50: 1186485.375
B51: 40 | C51: 689006.8125 | D51: 1000000 | F51: 138914.8546 | G51: 231519.4536 | I51: 1.929733683e+10 | J51: 5.360125741e+10 | L51: 3.216149123e+10 | N51: 700203.5586 | O51: -11196.74608 | R51: 39 | S51: 1207500 | T51: 592696.625 | U51: 834741.5279
B52: 41 | C52: 797400.375 | D52: 930000 | F52: 247308.4171 | G52: 161519.4536 | I52: 6.116145316e+10 | J52: 2.60885339e+10 | L52: 3.99451204e+10 | N52: 654817.2557 | O52: 142583.1193 | R52: 40 | S52: 1000000 | T52: 689006.8125 | U52: 700203.5586
B53: 42 | C53: 329242.625 | D53: 462520 | F53: -220849.3329 | G53: -305960.5464 | I53: 4.877442785e+10 | J53: 9.361185594e+10 | L53: 6.757118256e+10 | N53: 351714.5575 | O53: -22471.93248 | R53: 41 | S53: 930000 | T53: 797400.375 | U53: 654817.2557
B54: 43 | C54: 212101.7656 | D54: 249484 | F54: -337990.1923 | G54: -518996.5464 | I54: 1.142373701e+11 | J54: 2.693574152e+11 | L54: 1.754157425e+11 | N54: 213587.18 | O54: -1485.414389 | R54: 42 | S54: 462520 | T54: 329242.625 | U54: 351714.5575
B55: 44 | C55: 648134.6875 | D55: 834000 | F55: 98042.72959 | G55: 65519.45362 | I55: 9612376825 | J55: 4292798803 | L55: 6423706074 | N55: 592573.1832 | O55: 55561.50434 | R55: 43 | S55: 249484 | T55: 212101.7656 | U55: 213587.18
B56: 45 | C56: 470205.6875 | D56: 550000 | F56: -79886.27041 | G56: -218480.5464 | I56: 6381816200 | J56: 4.773374915e+10 | L56: 1.745359601e+10 | N56: 408434.4686 | O56: 61771.21892 | R56: 44 | S56: 834000 | T56: 648134.6875 | U56: 592573.1832
B57: 46 | C57: 451196.4688 | D57: 570000 | F57: -98895.48916 | G57: -198480.5464 | I57: 9780317777 | J57: 3.939452729e+10 | L57: 1.962883072e+10 | N57: 421401.9837 | O57: 29794.48506 | R57: 45 | S57: 550000 | T57: 470205.6875 | U57: 408434.4686
B58: 47 | C58: 252466.0625 | D58: 438300 | F58: -297625.8954 | G58: -330180.5464 | I58: 8.858117362e+10 | J58: 1.090191932e+11 | L58: 9.827028076e+10 | N58: 336010.8967 | O58: -83544.83418 | R58: 46 | S58: 570000 | T58: 451196.4688 | U58: 421401.9837
B59: 48 | C59: 291984.875 | D59: 298000 | F59: -258107.0829 | G59: -470480.5464 | I59: 6.661926625e+10 | J59: 2.213519445e+11 | L59: 1.214343614e+11 | N59: 245043.7782 | O59: 46941.09683 | R59: 47 | S59: 438300 | T59: 252466.0625 | U59: 336010.8967
B60: 49 | C60: 162782.9062 | D60: 822000 | F60: -387309.0517 | G60: 53519.45362 | I60: 1.500083015e+11 | J60: 2864331916 | L60: -2.072856883e+10 | N60: 584792.6741 | O60: -422009.7678 | R60: 48 | S60: 298000 | T60: 291984.875 | U60: 245043.7782
B61: 50 | C61: 353305.4688 | D61: 447222 | F61: -196786.4892 | G61: -321258.5464 | I61: 3.872492232e+10 | J61: 1.032070536e+11 | L61: 6.321934145e+10 | N61: 341795.7052 | O61: 11509.76358 | R61: 49 | S61: 822000 | T61: 162782.9062 | U61: 584792.6741
B62: 51 | C62: 831738.125 | D62: 880000 | F62: 281646.1671 | G62: 111519.4536 | I62: 7.932456344e+10 | J62: 1.243658854e+10 | L62: 3.140902667e+10 | N62: 622398.4679 | O62: 209339.6571 | R62: 50 | S62: 447222 | T62: 353305.4688 | U62: 341795.7052
B63: 52 | C63: 418626.9688 | D63: 573000 | F63: -131464.9892 | G63: -195480.5464 | I63: 1.728304338e+10 | J63: 3.821264401e+10 | L63: 2.569884791e+10 | N63: 423347.111 | O63: -4720.142204 | R63: 51 | S63: 880000 | T63: 831738.125 | U63: 622398.4679
B64: 53 | C64: 330540.4062 | D64: 678000 | F64: -219551.5517 | G64: -90480.54638 | I64: 4.820288384e+10 | J64: 8186729273 | L64: 1.986514435e+10 | N64: 491426.5653 | O64: -160886.159 | R64: 52 | S64: 573000 | T64: 418626.9688 | U64: 423347.111
B65: 54 | C65: 608177.6875 | D65: 744000 | F65: 58085.72959 | G65: -24480.54638 | I65: 3373951982 | J65: 599297150.9 | L65: -1421970397 | N65: 534219.3652 | O65: 73958.32234 | R65: 53 | S65: 678000 | T65: 330540.4062 | U65: 491426.5653
B66: 55 | C66: 966917.75 | D66: 1211000 | F66: 416825.7921 | G66: 442519.4536 | I66: 1.737437409e+11 | J66: 1.958234668e+11 | L66: 1.844535218e+11 | N66: 837010.843 | O66: 129906.907 | R66: 54 | S66: 744000 | T66: 608177.6875 | U66: 534219.3652
B67: 56 | C67: 362864.5938 | D67: 440000 | F67: -187227.3642 | G67: -328480.5464 | I67: 3.505408589e+10 | J67: 1.078994693e+11 | L67: 6.150054688e+10 | N67: 337113.1355 | O67: 25751.45829 | R67: 55 | S67: 1211000 | T67: 966917.75 | U67: 837010.843
B68: 57 | C68: 822663.875 | D68: 972000 | F68: 272571.9171 | G68: 203519.4536 | I68: 7.429544999e+10 | J68: 4.1420168e+10 | L68: 5.547368764e+10 | N68: 682049.0374 | O68: 140614.8376 | R68: 56 | S68: 440000 | T68: 362864.5938 | U68: 337113.1355
B69: 58 | C69: 496476.3125 | D69: 696000 | F69: -53615.64541 | G69: -72480.54638 | I69: 2874637433 | J69: 5253429603 | L69: 3886091274 | N69: 503097.3289 | O69: -6621.01639 | R69: 57 | S69: 972000 | T69: 822663.875 | U69: 682049.0374
B70: 59 | C70: 1623840.25 | D70: 1720838 | F70: 1073748.292 | G70: 952357.4536 | I70: 1.152935395e+12 | J70: 9.069847195e+11 | L70: 1.022592189e+12 | N70: 1167577.441 | O70: 456262.8085 | R70: 58 | S70: 696000 | T70: 496476.3125 | U70: 503097.3289
B71: 60 | C71: 801953 | D71: 1248746 | F71: 251861.0421 | G71: 480265.4536 | I71: 6.343398452e+10 | J71: 2.306549059e+11 | L71: 1.209601576e+11 | N71: 861484.4343 | O71: -59531.43428 | R71: 59 | S71: 1720838 | T71: 1623840.25 | U71: 1167577.441
B72: 61 | C72: 551966.5 | D72: 614244 | F72: 1874.542088 | G72: -154236.5464 | I72: 3513908.04 | J72: 2.378891224e+10 | L72: -289122897.7 | N72: 450088.7206 | O72: 101877.7794 | R72: 60 | S72: 1248746 | T72: 801953 | U72: 861484.4343
B73: 62 | C73: 265574.3125 | D73: 349824 | F73: -284517.6454 | G73: -418656.5464 | I73: 8.095029055e+10 | J73: 1.752733038e+11 | L73: 1.191151748e+11 | N73: 278645.2033 | O73: -13070.89083 | R73: 61 | S73: 614244 | T73: 551966.5 | U73: 450088.7206
B74: 63 | C74: 142017.3438 | D74: 420000 | F74: -408074.6142 | G74: -348480.5464 | I74: 1.665248907e+11 | J74: 1.214386912e+11 | L74: 1.422060645e+11 | N74: 324145.6204 | O74: -182128.2766 | R74: 62 | S74: 349824 | T74: 265574.3125 | U74: 278645.2033
B75: 64 | C75: 498792.5938 | D75: 756000 | F75: -51299.36416 | G75: -12480.54638 | I75: 2631624763 | J75: 155764037.9 | L75: 640244093.6 | N75: 541999.8742 | O75: -43207.28047 | R75: 63 | S75: 420000 | T75: 142017.3438 | U75: 324145.6204
B76: 65 | C76: 814384.1875 | D76: 983200 | F76: 264292.2296 | G76: 214719.4536 | I76: 6.985038262e+10 | J76: 4.610444376e+10 | L76: 5.674868313e+10 | N76: 689310.8459 | O76: 125073.3416 | R76: 64 | S76: 756000 | T76: 498792.5938 | U76: 541999.8742
B77: 66 | C77: 1296079 | D77: 1800000 | F77: =+C77-C$1145 -> 745987.0421 | G77: =+D77-D$1145 -> 1031519.454 | I77: =+F77^2 -> 5.56496667e+11 | J77: =+G77^2 -> 1.064032383e+12 | L77: =+F77*G77 -> 7.695001461e+11 | N77: =+$D$1149+$D$1150*D77 -> 1218904.163 | O77: =+C77-N77 -> 77174.83696 | R77: 65 | S77: 983200 | T77: 814384.1875 | U77: 689310.8459
B78: 67 | C78: 364020.5 | D78: 459650 | F78: -186071.4579 | G78: -308830.5464 | I78: 3.462258745e+10 | J78: 9.537630638e+10 | L78: 5.746455001e+10 | N78: 349853.7191 | O78: 14166.78094 | R78: 66 | S78: 1800000 | T78: 1296079 | U78: 1218904.163
B79: 68 | C79: 234031 | D79: 378727 | F79: -316060.9579 | G79: -389753.5464 | I79: 9.989452912e+10 | J79: 1.519078269e+11 | L79: 1.231858792e+11 | N79: 297385.2078 | O79: -63354.20779 | R79: 67 | S79: 459650 | T79: 364020.5 | U79: 349853.7191
B80: 69 | C80: 571012.25 | D80: 787101 | F80: 20920.29209 | G80: 18620.45362 | I80: 437658621 | J80: 346721293.1 | L80: 389545328.6 | N80: 562165.0086 | O80: 8847.241402 | R80: 68 | S80: 378727 | T80: 234031 | U80: 297385.2078
B81: 70 | C81: 504737.125 | D81: 600000 | F81: -45354.83291 | G81: -168480.5464 | I81: 2057060868 | J81: 2.838569451e+10 | L81: 7641407030 | N81: 440853.2564 | O81: 63883.86865 | R81: 69 | S81: 787101 | T81: 571012.25 | U81: 562165.0086
B82: 71 | C82: 507099.1875 | D82: 769323 | F82: -42992.77041 | G82: 842.4536223 | I82: 1848378308 | J82: 709728.1058 | L82: -36219415.17 | N82: 550638.1844 | O82: -43538.99692 | R82: 70 | S82: 600000 | T82: 504737.125 | U82: 440853.2564
B83: 72 | C83: 709019.625 | D83: 1300000 | F83: 158927.6671 | G83: 531519.4536 | I83: 2.525800337e+10 | J83: 2.825129296e+11 | L83: 8.447314678e+10 | N83: 894716.2853 | O83: -185696.6603 | R83: 71 | S83: 769323 | T83: 507099.1875 | U83: 550638.1844
B84: 73 | C84: 403405.8125 | D84: 570700 | F84: -146686.1454 | G84: -197780.5464 | I84: 2.151682526e+10 | J84: 3.911714453e+10 | L84: 2.901166599e+10 | N84: 421855.8467 | O84: -18450.03422 | R84: 72 | S84: 1300000 | T84: 709019.625 | U84: 894716.2853
B85: 74 | C85: 478871.9062 | D85: 549000 | F85: -71220.05166 | G85: -219480.5464 | I85: 5072295759 | J85: 4.817171024e+10 | L85: 1.563141585e+10 | N85: 407786.0928 | O85: 71085.81343 | R85: 73 | S85: 570700 | T85: 403405.8125 | U85: 421855.8467
B86: 75 | C86: 395260.2812 | D86: 477000 | F86: -154831.6767 | G86: -291480.5464 | I86: 2.39728481e+10 | J86: 8.496090892e+10 | L86: 4.513042171e+10 | N86: 361103.0384 | O86: 34157.24283 | R86: 74 | S86: 549000 | T86: 478871.9062 | U86: 407786.0928
B87: 76 | C87: 711394.625 | D87: 750000 | F87: 161302.6671 | G87: -18480.54638 | I87: 2.601855041e+10 | J87: 341530594.4 | L87: -2980961420 | N87: 538109.6197 | O87: 173285.0053 | R87: 75 | S87: 477000 | T87: 395260.2812 | U87: 361103.0384
B88: 77 | C88: 550352.75 | D88: 740000 | F88: 260.792088 | G88: -28480.54638 | I88: 68012.51318 | J88: 811141522 | L88: -7427501.158 | N88: 531625.8621 | O88: 18726.88786 | R88: 76 | S88: 750000 | T88: 711394.625 | U88: 538109.6197
B89: 78 | C89: 395381.0625 | D89: 400000.875 | F89: -154710.8954 | G89: -368479.6714 | I89: 2.393546116e+10 | J89: 1.357772682e+11 | L89: 5.70078199e+10 | N89: 311178.6726 | O89: 84202.38993 | R89: 77 | S89: 740000 | T89: 550352.75 | U89: 531625.8621
B90: 79 | C90: 285701.75 | D90: 408643.875 | F90: -264390.2079 | G90: -359836.6714 | I90: 6.990218204e+10 | J90: 1.294824301e+11 | L90: 9.513729236e+10 | N90: 316782.5842 | O90: -31080.83422 | R90: 78 | S90: 400000.875 | T90: 395381.0625 | U90: 311178.6726
B91: 80 | C91: 388880.8438 | D91: 452001.1562 | F91: -161211.1142 | G91: -316479.3901 | I91: 2.598902333e+10 | J91: 1.001592044e+11 | L91: 5.101999509e+10 | N91: 344894.3942 | O91: 43986.44954 | R91: 79 | S91: 408643.875 | T91: 285701.75 | U91: 316782.5842
B92: 81 | C92: 767325 | D92: 1020000 | F92: 217233.0421 | G92: 251519.4536 | I92: 4.719019457e+10 | J92: 6.326203555e+10 | L92: 5.463833605e+10 | N92: 713171.0737 | O92: 54153.9263 | R92: 80 | S92: 452001.1562 | T92: 388880.8438 | U92: 344894.3942
B93: 82 | C93: 283836.8438 | D93: 618000.5625 | F93: -266255.1142 | G93: -150479.9839 | I93: 7.089178582e+10 | J93: 2.264422555e+10 | L93: 4.006606529e+10 | N93: 452524.3847 | O93: -168687.5409 | R93: 81 | S93: 1020000 | T93: 767325 | U93: 713171.0737
B94: 83 | C94: 703875.1875 | D94: 1080000.625 | F94: 153783.2296 | G94: 311520.0786 | I94: 2.36492817e+10 | J94: 9.704475938e+10 | L94: 4.790656377e+10 | N94: 752074.0243 | O94: -48198.83677 | R94: 82 | S94: 618000.5625 | T94: 283836.8438 | U94: 452524.3847
B95: 84 | C95: 559917.8125 | D95: 875000.5 | F95: 9825.854588 | G95: 106519.9536 | I95: 96547418.39 | J95: 1.134650052e+10 | L95: 1046649575 | N95: 619156.9133 | O95: -59239.10083 | R95: 83 | S95: 1080000.625 | T95: 703875.1875 | U95: 752074.0243
B96: 85 | C96: 468333.5625 | D96: 705476.5 | F96: -81758.39541 | G96: -63004.04638 | I96: 6684435220 | J96: 3969509860 | L96: 5151109736 | N96: 509241.6617 | O96: -40908.09924 | R96: 84 | S96: 875000.5 | T96: 559917.8125 | U96: 619156.9133
B97: 86 | C97: 446948.2188 | D97: 1029802.5 | F97: -103143.7392 | G97: 261321.9536 | I97: 1.063863093e+10 | J97: 6.828916345e+10 | L97: -2.695372342e+10 | N97: 719526.777 | O97: -272578.5583 | R97: 85 | S97: 705476.5 | T97: 468333.5625 | U97: 509241.6617
B98: 87 | C98: 221570.4844 | D98: 248200.9531 | F98: -328521.4735 | G98: -520279.5933 | I98: 1.079263586e+11 | J98: 2.706908552e+11 | L98: 1.709230186e+11 | N98: 212755.2835 | O98: 8815.200848 | R98: 86 | S98: 1029802.5 | T98: 446948.2188 | U98: 719526.777
B99: 88 | C99: 830163.1875 | D99: 1271152 | F99: 280071.2296 | G99: 502671.4536 | I99: 7.843989364e+10 | J99: 2.526785903e+11 | L99: 1.407838121e+11 | N99: 876011.9415 | O99: -45848.75396 | R99: 87 | S99: 248200.9531 | T99: 221570.4844 | U99: 212755.2835
B100: 89 | C100: 736880.4375 | D100: 1316601 | F100: 186788.4796 | G100: 548120.4536 | I100: 3.488993611e+10 | J100: 3.004360317e+11 | L100: 1.023825862e+11 | N100: 905479.9712 | O100: -168599.5337 | R100: 88 | S100: 1271152 | T100: 830163.1875 | U100: 876011.9415
B101: 90 | C101: 591055.9375 | D101: 925001.125 | F101: 40963.97959 | G101: 156520.5786 | I101: 1678047624 | J101: 2.449869153e+10 | L101: 6411705788 | N101: 651576.1063 | O101: -60520.16884 | R101: 89 | S101: 1316601 | T101: 736880.4375 | U101: 905479.9712
B102: 91 | C102: 695913.6875 | D102: 717001.125 | F102: 145821.7296 | G102: -51479.42138 | I102: 2.126397682e+10 | J102: 2650130825 | L102: -7506818263 | N102: 516713.9492 | O102: 179199.7383 | R102: 90 | S102: 925001.125 | T102: 591055.9375 | U102: 651576.1063
B103: 92 | C103: 626795.9375 | D103: 796001.125 | F103: 76703.97959 | G103: 27520.57862 | I103: 5883500485 | J103: 757382247.7 | L103: 2110937901 | N103: 567935.6339 | O103: 58860.30363 | R103: 91 | S103: 717001.125 | T103: 695913.6875 | U103: 516713.9492
B104: 93 | C104: 183991.3281 | D104: 300002.5938 | F104: -366100.6298 | G104: -468477.9526 | I104: 1.340296711e+11 | J104: 2.194715921e+11 | L104: 1.715100735e+11 | N104: 246342.2114 | O104: -62350.88328 | R104: 92 | S104: 796001.125 | T104: 626795.9375 | U104: 567935.6339
B105: 94 | C105: 435052.4375 | D105: 750002.5625 | F105: -115039.5204 | G105: -18477.98388 | I105: 1.323409126e+10 | J105: 341435888.2 | L105: 2125698403 | N105: 538111.2812 | O105: -103058.8437 | R105: 93 | S105: 300002.5938 | T105: 183991.3281 | U105: 246342.2114
B106: 95 | C106: 569475.375 | D106: 615002.5625 | F106: 19383.41709 | G106: -153477.9839 | I106: 375716858 | J106: 2.355549154e+10 | L106: -2974927775 | N106: 450580.5542 | O106: 118894.8208 | R106: 94 | S106: 750002.5625 | T106: 435052.4375 | U106: 538111.2812
B107: 96 | C107: 549875.5 | D107: 618000.5625 | F107: -216.457912 | G107: -150479.9839 | I107: 46854.02765 | J107: 2.264422555e+10 | L107: 32572583.1 | N107: 452524.3847 | O107: 97351.11533 | R107: 95 | S107: 615002.5625 | T107: 569475.375 | U107: 450580.5542
B108: 97 | C108: 82834.50781 | D108: 135000.5469 | F108: -467257.4501 | G108: -633479.9995 | I108: 2.183295247e+11 | J108: 4.012969098e+11 | L108: 2.959982493e+11 | N108: 139358.8846 | O108: -56524.37678 | R108: 96 | S108: 618000.5625 | T108: 549875.5 | U108: 452524.3847
B109: 98 | C109: 317168 | D109: 780000.875 | F109: -232923.9579 | G109: 11520.32862 | I109: 5.425357017e+10 | J109: 132717971.6 | L109: -2683360539 | N109: 557561.4597 | O109: -240393.4597 | R109: 97 | S109: 135000.5469 | T109: 82834.50781 | U109: 139358.8846
B110: 99 | C110: 1091637.375 | D110: 1402001.75 | F110: 541545.4171 | G110: 633521.2036 | I110: 2.932714388e+11 | J110: 4.013491154e+11 | L110: 3.430805044e+11 | N110: 960851.747 | O110: 130785.628 | R110: 98 | S110: 780000.875 | T110: 317168 | U110: 557561.4597
B111: 100 | C111: 295075.5312 | D111: 356000.875 | F111: -255016.4267 | G111: -412479.6714 | I111: 6.503337787e+10 | J111: 1.701394793e+11 | L111: 1.051890919e+11 | N111: 282650.1393 | O111: 12425.39193 | R111: 99 | S111: 1402001.75 | T111: 1091637.375 | U111: 960851.747
B112: 101 | C112: 300060.6875 | D112: 600000.8125 | F112: -250031.2704 | G112: -168479.7339 | I112: 6.251563618e+10 | J112: 2.838542073e+10 | L112: 4.21252019e+10 | N112: 440853.7832 | O112: -140793.0957 | R112: 100 | S112: 356000.875 | T112: 295075.5312 | U112: 282650.1393
B113: 102 | C113: 804474.0625 | D113: 1056000.625 | F113: 254382.1046 | G113: 287520.0786 | I113: 6.471025513e+10 | J113: 8.266779561e+10 | L113: 7.313996271e+10 | N113: 736513.0061 | O113: 67961.05637 | R113: 101 | S113: 600000.8125 | T113: 300060.6875 | U113: 440853.7832
B114: 103 | C114: 334999.375 | D114: 473500.6562 | F114: -215092.5829 | G114: -294979.8901 | I114: 4.626481922e+10 | J114: 8.701313558e+10 | L114: 6.344798647e+10 | N114: 358834.1488 | O114: -23834.77377 | R114: 102 | S114: 1056000.625 | T114: 804474.0625 | U114: 736513.0061
B115: 104 | C115: 446500.7812 | D115: 533300.625 | F115: -103591.1767 | G115: -235179.9214 | I115: 1.073113188e+10 | J115: 5.530959542e+10 | L115: 2.436256478e+10 | N115: 397606.9987 | O115: 48893.78256 | R115: 103 | S115: 473500.6562 | T115: 334999.375 | U115: 358834.1488
B116: 105 | C116: 807504.1875 | D116: 976354.9375 | F116: 257412.2296 | G116: 207874.3911 | I116: 6.626105594e+10 | J116: 4.321176248e+10 | L116: 5.350941049e+10 | N116: 684872.6733 | O116: 122631.5142 | R116: 104 | S116: 533300.625 | T116: 446500.7812 | U116: 397606.9987
B117: 106 | C117: 642482.5 | D117: 748001.9375 | F117: 92390.54209 | G117: -20478.60888 | I117: 8536012267 | J117: 419373421.6 | L117: -1892029775 | N117: 536814.1244 | O117: 105668.3756 | R117: 105 | S117: 976354.9375 | T117: 807504.1875 | U117: 684872.6733
B118: 107 | C118: 121497.5156 | D118: 329201.9688 | F118: -428594.4423 | G118: -439278.5776 | I118: 1.83693196e+11 | J118: 1.929656688e+11 | L118: 1.88272357e+11 | N118: 265274.3782 | O118: -143776.8626 | R118: 106 | S118: 748001.9375 | T118: 642482.5 | U118: 536814.1244
B119: 108 | C119: 1405372.875 | D119: 1460006.125 | F119: 855280.9171 | G119: 691525.5786 | I119: 7.315054471e+11 | J119: 4.782076259e+11 | L119: 5.914486311e+11 | N119: 998460.3775 | O119: 406912.4975 | R119: 107 | S119: 329201.9688 | T119: 121497.5156 | U119: 265274.3782
B120: 109 | C120: 420978.6875 | D120: 500000.875 | F120: -129113.2704 | G120: -268479.6714 | I120: 1.66702366e+10 | J120: 7.208133394e+10 | L120: 3.466428841e+10 | N120: 376016.2481 | O120: 44962.43937 | R120: 108 | S120: 1460006.125 | T120: 1405372.875 | U120: 998460.3775
B121: 110 | C121: 541631.8125 | D121: 640000.875 | F121: -8460.145412 | G121: -128479.6714 | I121: 71574060.39 | J121: 1.650702596e+10 | L121: 1086956702 | N121: 466788.8539 | O121: 74842.95859 | R121: 109 | S121: 500000.875 | T121: 420978.6875 | U121: 376016.2481
B122: 111 | C122: 454987.3125 | D122: 780000.875 | F122: -95104.64541 | G122: 11520.32862 | I122: 9044893579 | J122: 132717971.6 | L122: -1095636769 | N122: 557561.4597 | O122: -102574.1472 | R122: 110 | S122: 640000.875 | T122: 541631.8125 | U122: 466788.8539
B123: 112 | C123: 726676.5 | D123: 812000.5625 | F123: 176584.5421 | G123: 43520.01612 | I123: 3.11821005e+10 | J123: 1893991803 | L123: 7684962119 | N123: 578309.2812 | O123: 148367.2188 | R123: 111 | S123: 780000.875 | T123: 454987.3125 | U123: 557561.4597
B124: 113 | C124: 366814.6875 | D124: 413300.5312 | F124: -183277.2704 | G124: -355180.0151 | I124: 3.359055785e+10 | J124: 1.261528431e+11 | L124: 6.509642368e+10 | N124: 319801.8472 | O124: 47012.84026 | R124: 112 | S124: 812000.5625 | T124: 726676.5 | U124: 578309.2812
B125: 114 | C125: 579574.125 | D125: 688000.625 | F125: 29482.16709 | G125: -80479.92138 | I125: 869198176.2 | J125: 6477017745 | L125: -2372722489 | N125: 497910.7281 | O125: 81663.39692 | R125: 113 | S125: 413300.5312 | T125: 366814.6875 | U125: 319801.8472
B126: 115 | C126: 540677.375 | D126: 600000.625 | F126: -9414.582912 | G126: -168479.9214 | I126: 88634371.41 | J126: 2.838548391e+10 | L126: 1586168189 | N126: 440853.6616 | O126: 99823.71341 | R126: 114 | S126: 688000.625 | T126: 579574.125 | U126: 497910.7281
B127: 116 | C127: 357439.7812 | D127: 522855.1562 | F127: -192652.1767 | G127: -245625.3901 | I127: 3.711486117e+10 | J127: 6.033183228e+10 | L127: 4.732026605e+10 | N127: 390834.41 | O127: -33394.62875 | R127: 115 | S127: 600000.625 | T127: 540677.375 | U127: 440853.6616
B128: 117 | C128: 187660.7656 | D128: 213740.7812 | F128: -362431.1923 | G128: -554739.7651 | I128: 1.313563691e+11 | J128: 3.07736207e+11 | L128: 2.010549945e+11 | N128: 190412.1436 | O128: -2751.377925 | R128: 116 | S128: 522855.1562 | T128: 357439.7812 | U128: 390834.41
B129: 118 | C129: 604996.4375 | D129: 807124.8125 | F129: 54904.47959 | G129: 38644.26612 | I129: 3014501879 | J129: 1493379304 | L129: 2121743321 | N129: 575147.9632 | O129: 29848.47434 | R129: 117 | S129: 213740.7812 | T129: 187660.7656 | U129: 190412.1436
B130: 119 | C130: 176085.875 | D130: 540000.8125 | F130: -374006.0829 | G130: -228479.7339 | I130: 1.398805501e+11 | J130: 5.220298879e+10 | L130: 8.545281029e+10 | N130: 401951.2378 | O130: -225865.3628 | R130: 118 | S130: 807124.8125 | T130: 604996.4375 | U130: 575147.9632
B131: 120 | C131: 426956.125 | D131: 464678.7812 | F131: -123135.8329 | G131: -303801.7651 | I131: 1.516243335e+10 | J131: 9.229551249e+10 | L131: 3.740888339e+10 | N131: 353114.2589 | O131: 73841.8661 | R131: 119 | S131: 540000.8125 | T131: 176085.875 | U131: 401951.2378
B132: 121 | C132: 355998.125 | D132: 431200.5312 | F132: -194093.8329 | G132: -337280.0151 | I132: 3.767241597e+10 | J132: 1.137578086e+11 | L132: 6.54639709e+10 | N132: 331407.7733 | O132: 24590.35174 | R132: 120 | S132: 464678.7812 | T132: 426956.125 | U132: 353114.2589
B133: 122 | C133: 354409.1875 | D133: 400001.25 | F133: -195682.7704 | G133: -368479.2964 | I133: 3.829174664e+10 | J133: 1.357769919e+11 | L133: 7.210504955e+10 | N133: 311178.9157 | O133: 43230.27179 | R133: 121 | S133: 431200.5312 | T133: 355998.125 | U133: 331407.7733
B134: 123 | C134: 724588.75 | D134: 1200000.75 | F134: 174496.7921 | G134: 431520.2036 | I134: 3.044913045e+10 | J134: 1.862096861e+11 | L134: 7.529889125e+10 | N134: 829879.196 | O134: -105290.446 | R134: 122 | S134: 400001.25 | T134: 354409.1875 | U134: 311178.9157
B135: 124 | C135: 218616.5 | D135: 301115.75 | F135: -331475.4579 | G135: -467364.7964 | I135: 1.098759792e+11 | J135: 2.184298529e+11 | L135: 1.549199599e+11 | N135: 247063.9549 | O135: -28447.45493 | R135: 123 | S135: 1200000.75 | T135: 724588.75 | U135: 829879.196
B136: 125 | C136: 695278.125 | D136: 785447.75 | F136: 145186.1671 | G136: 16967.20362 | I136: 2.107902311e+10 | J136: 287885998.8 | L136: 2463403260 | N136: 561093.0814 | O136: 134185.0436 | R136: 124 | S136: 301115.75 | T136: 218616.5 | U136: 247063.9549
B137: 126 | C137: 538942.9375 | D137: 705000.8125 | F137: -11149.02041 | G137: -63479.73388 | I137: 124300656.1 | J137: 4029676613 | L137: 707736848.7 | N137: 508933.2375 | O137: 30009.7 | R137: 125 | S137: 785447.75 | T137: 695278.125 | U137: 561093.0814
B138: 127 | C138: 399858 | D138: 519426.75 | F138: -150233.9579 | G138: -249053.7964 | I138: 2.257024211e+10 | J138: 6.202779349e+10 | L138: 3.741633756e+10 | N138: 388611.5145 | O138: 11246.48549 | R138: 126 | S138: 705000.8125 | T138: 538942.9375 | U138: 508933.2375
B139: 128 | C139: 901249.75 | D139: 934000.75 | F139: 351157.7921 | G139: 165520.2036 | I139: 1.233117949e+11 | J139: 2.739693781e+10 | L139: 5.812370925e+10 | N139: 657411.245 | O139: 243838.505 | R139: 127 | S139: 519426.75 | T139: 399858 | U139: 388611.5145
B140: 129 | C140: 1025018.812 | D140: 1242843.75 | F140: 474926.8546 | G140: 474363.2036 | I140: 2.255555172e+11 | J140: 2.25020449e+11 | L140: 2.252878242e+11 | N140: 857657.5585 | O140: 167361.254 | R140: 128 | S140: 934000.75 | T140: 901249.75 | U140: 657411.245
B141: 130 | C141: 477900.5312 | D141: 620001.125 | F141: =+C141-C$1145 -> -72191.42666 | G141: =+D141-D$1145 -> -148479.4214 | I141: =+F141^2 -> 5211602083 | J141: =+G141^2 -> 2.204613857e+10 | L141: =+F141*G141 -> 1.071894126e+10 | N141: =+$D$1149+$D$1150*D141 -> 453821.5009 | O141: =+C141-N141 -> 24079.03036 | R141: 129 | S141: 1242843.75 | T141: 1025018.812 | U141: 857657.5585
B142: 131 | C142: 240015.2188 | D142: 402001.125 | F142: -310076.7392 | G142: -366479.4214 | I142: 9.614758417e+10 | J142: 1.343071663e+11 | L142: 1.13636744e+11 | N142: 312475.5862 | O142: -72460.36742 | R142: 130 | S142: 620001.125 | T142: 477900.5312 | U142: 453821.5009
B143: 132 | C143: 428060.6562 | D143: 560000.625 | F143: -122031.3017 | G143: -208479.9214 | I143: 1.489163859e+10 | J143: 4.346387762e+10 | L143: 2.544107618e+10 | N143: 414918.6314 | O143: 13142.02488 | R143: 131 | S143: 402001.125 | T143: 240015.2188 | U143: 312475.5862
B144: 133 | C144: 1084086.875 | D144: 1730000.625 | F144: 533994.9171 | G144: 961520.0786 | I144: 2.851505715e+11 | J144: 9.245208616e+11 | L144: 5.134468347e+11 | N144: 1173518.265 | O144: -89431.39039 | R144: 132 | S144: 560000.625 | T144: 428060.6562 | U144: 414918.6314
B145: 134 | C145: 622795.375 | D145: 718001.0625 | F145: 72703.41709 | G145: -50479.48388 | I145: 5285786856 | J145: 2548178293 | L145: -3670030971 | N145: 517362.2844 | O145: 105433.0906 | R145: 133 | S145: 1730000.625 | T145: 1084086.875 | U145: 1173518.265
B146: 135 | C146: 439084.3125 | D146: 480000.6562 | F146: -111007.6454 | G146: -288479.8901 | I146: 1.232269734e+10 | J146: 8.322064701e+10 | L146: 3.202347335e+10 | N146: 363048.5912 | O146: 76035.72132 | R146: 134 | S146: 718001.0625 | T146: 622795.375 | U146: 517362.2844
B147: 136 | C147: 218236 | D147: 229200.6406 | F147: -331855.9579 | G147: -539279.9058 | I147: 1.101283768e+11 | J147: 2.908228167e+11 | L147: 1.789632497e+11 | N147: 200435.9416 | O147: 17800.05845 | R147: 135 | S147: 480000.6562 | T147: 439084.3125 | U147: 363048.5912
B148: 137 | C148: 520215 | D148: 888000.625 | F148: -29876.95791 | G148: 119520.0786 | I148: 892632614.1 | J148: 1.428504919e+10 | L148: -3570896359 | N148: 627585.8792 | O148: -107370.8792 | R148: 136 | S148: 229200.6406 | T148: 218236 | U148: 200435.9416
B149: 138 | C149: 276854.5 | D149: 356000.6562 | F149: -273237.4579 | G149: -412479.8901 | I149: 7.465870841e+10 | J149: 1.701396598e+11 | L149: 1.127049566e+11 | N149: 282649.9975 | O149: -5795.497491 | R149: 137 | S149: 888000.625 | T149: 520215 | U149: 627585.8792
B150: 139 | C150: 551286 | D150: 1020000.625 | F150: 1194.042088 | G150: 251520.0786 | I150: 1425736.508 | J150: 6.326234995e+10 | L150: 300325559.9 | N150: 713171.4789 | O150: -161885.4789 | R150: 138 | S150: 356000.6562 | T150: 276854.5 | U150: 282649.9975
B151: 140 | C151: 444887.3438 | D151: 978006.0625 | F151: -105204.6142 | G151: 209525.5161 | I151: 1.106801084e+10 | J151: 4.390094191e+10 | L151: -2.204305108e+10 | N151: 685943.2227 | O151: -241055.879 | R151: 139 | S151: 1020000.625 | T151: 551286 | U151: 713171.4789
B152: 141 | C152: 186671.8438 | D152: 247106.0625 | F152: -363420.1142 | G152: -521374.4839 | I152: 1.320741794e+11 | J152: 2.718313524e+11 | L152: 1.894779745e+11 | N152: 212045.383 | O152: -25373.53924 | R152: 140 | S152: 978006.0625 | T152: 444887.3438 | U152: 685943.2227
B153: 142 | C153: 545256.8125 | D153: 865006.0625 | F153: -4835.145412 | G153: 96525.51612 | I153: 23378631.15 | J153: 9317175263 | L153: -466714906.4 | N153: 612676.7624 | O153: -67419.94986 | R153: 141 | S153: 247106.0625 | T153: 186671.8438 | U153: 212045.383
B154: 143 | C154: 354421.5312 | D154: 918006.0625 | F154: -195670.4267 | G154: 149525.5161 | I154: 3.828691587e+10 | J154: 2.235787997e+10 | L154: -2.925772154e+10 | N154: 647040.6774 | O154: -292619.1462 | R154: 142 | S154: 865006.0625 | T154: 545256.8125 | U154: 612676.7624
B155: 144 | C155: 1186397.125 | D155: 1235406.125 | F155: 636305.1671 | G155: 466925.5786 | I155: 4.048842657e+11 | J155: 2.18019496e+11 | L155: 2.971071583e+11 | N155: 852835.1827 | O155: 333561.9423 | R155: 143 | S155: 918006.0625 | T155: 354421.5312 | U155: 647040.6774
B156: 145 | C156: 684638.1875 | D156: 845207.5625 | F156: 134546.2296 | G156: 76727.01612 | I156: 1.81026879e+10 | J156: 5887035003 | L156: 1.032333073e+10 | N156: 599839.895 | O156: 84798.29254 | R156: 144 | S156: 1235406.125 | T156: 1186397.125 | U156: 852835.1827
B157: 146 | C157: 637985.1875 | D157: 844000.5625 | F157: 87893.22959 | G157: 75520.01612 | I157: 7725219807 | J157: 5703272835 | L157: 6637698116 | N157: 599057.3054 | O157: 38927.88207 | R157: 145 | S157: 845207.5625 | T157: 684638.1875 | U157: 599839.895
B158: 147 | C158: 479658.4688 | D158: 840000.5625 | F158: -70433.48916 | G158: 71520.01612 | I158: 4960876396 | J158: 5115112706 | L158: -5037404280 | N158: 596463.8024 | O158: -116805.3337 | R158: 146 | S158: 844000.5625 | T158: 637985.1875 | U158: 599057.3054
B159: 148 | C159: 555432.1875 | D159: 840000.6875 | F159: 5340.229588 | G159: 71520.14112 | I159: 28518052.05 | J159: 5115130586 | L159: 381933973.8 | N159: 596463.8835 | O159: -41031.69595 | R159: 147 | S159: 840000.5625 | T159: 479658.4688 | U159: 596463.8024
B160: 149 | C160: 1053025.25 | D160: 1427413.625 | F160: 502933.2921 | G160: 658933.0786 | I160: 2.529418963e+11 | J160: 4.341928021e+11 | L160: 3.313993825e+11 | N160: 977328.1906 | O160: 75697.05936 | R160: 148 | S160: 840000.6875 | T160: 555432.1875 | U160: 596463.8835
B161: 150 | C161: 322858.3438 | D161: 390000.6562 | F161: -227233.6142 | G161: -378479.8901 | I161: 5.163511541e+10 | J161: 1.432470272e+11 | L161: 8.600335332e+10 | N161: 304694.7732 | O161: 18163.57057 | R161: 149 | S161: 1427413.625 | T161: 1053025.25 | U161: 977328.1906
B162: 151 | C162: 330899.0625 | D162: 565830.8125 | F162: -219192.8954 | G162: -202649.7339 | I162: 4.80455254e+10 | J162: 4.106691464e+10 | L162: 4.441938192e+10 | N162: 418698.7836 | O162: -87799.72109 | R162: 150 | S162: 390000.6562 | T162: 322858.3438 | U162: 304694.7732
B163: 152 | C163: 331974.0625 | D163: 361976.8438 | F163: -218117.8954 | G163: -406503.7026 | I163: 4.75754163e+10 | J163: 1.652452602e+11 | L163: 8.866573209e+10 | N163: 286524.8126 | O163: 45449.24992 | R163: 151 | S163: 565830.8125 | T163: 330899.0625 | U163: 418698.7836
B164: 153 | C164: 567794.25 | D164: 816280.8125 | F164: 17702.29209 | G164: 47800.26612 | I164: 313371145.2 | J164: 2284865441 | L164: 846174272.8 | N164: 581084.4916 | O164: -13290.24158 | R164: 152 | S164: 361976.8438 | T164: 331974.0625 | U164: 286524.8126
B165: 154 | C165: 253359.2812 | D165: 260000.5312 | F165: -296732.6767 | G165: -508480.0151 | I165: 8.80502814e+10 | J165: 2.585519258e+11 | L165: 1.508826359e+11 | N165: 220405.8439 | O165: 32953.43734 | R165: 153 | S165: 816280.8125 | T165: 567794.25 | U165: 581084.4916
B166: 155 | C166: 1085646.875 | D166: 1200000.5 | F166: 535554.9171 | G166: 431519.9536 | I166: 2.868190692e+11 | J166: 1.862094704e+11 | L166: 2.31102633e+11 | N166: 829879.0339 | O166: 255767.8411 | R166: 154 | S166: 260000.5312 | T166: 253359.2812 | U166: 220405.8439
B167: 156 | C167: 613962.8125 | D167: 976000.625 | F167: 63870.85459 | G167: 207520.0786 | I167: 4079486066 | J167: 4.306458303e+10 | L167: 1.325448477e+10 | N167: 684642.9457 | O167: -70680.13319 | R167: 155 | S167: 1200000.5 | T167: 1085646.875 | U167: 829879.0339
B168: 157 | C168: 502499.5 | D168: 560000.625 | F168: -47592.45791 | G168: -208479.9214 | I168: 2265042050 | J168: 4.346387762e+10 | L168: 9922071884 | N168: 414918.6314 | O168: 87580.86863 | R168: 156 | S168: 976000.625 | T168: 613962.8125 | U168: 684642.9457
B169: 158 | C169: 996776.375 | D169: 1847168.625 | F169: 446684.4171 | G169: 1078688.079 | I169: 1.995269685e+11 | J169: 1.163567971e+12 | L169: 4.818331556e+11 | N169: 1249487.156 | O169: -252710.7809 | R169: 157 | S169: 560000.625 | T169: 502499.5 | U169: 414918.6314
B170: 159 | C170: 797399.875 | D170: 1171000.5 | F170: 247307.9171 | G170: 402519.9536 | I170: 6.116120585e+10 | J170: 1.620223131e+11 | L170: 9.954637132e+10 | N170: 811076.137 | O170: -13676.26198 | R170: 158 | S170: 1847168.625 | T170: 996776.375 | U170: 1249487.156
B171: 160 | C171: 394838.9375 | D171: 520000.5312 | F171: -155253.0204 | G171: -248480.0151 | I171: 2.410350035e+10 | J171: 6.174231792e+10 | L171: 3.857727286e+10 | N171: 388983.5404 | O171: 5855.397142 | R171: 159 | S171: 1171000.5 | T171: 797399.875 | U171: 811076.137
B172: 161 | C172: 259739.0938 | D172: 356000.5312 | F172: -290352.8642 | G172: -412480.0151 | I172: 8.430478573e+10 | J172: 1.701397629e+11 | L172: 1.197647538e+11 | N172: 282649.9164 | O172: -22910.82269 | R172: 160 | S172: 520000.5312 | T172: 394838.9375 | U172: 388983.5404
B173: 162 | C173: 659402.9375 | D173: 1272400.5 | F173: 109310.9796 | G173: 503919.9536 | I173: 1.194889026e+10 | J173: 2.539353197e+11 | L173: 5.508398376e+10 | N173: 876821.4386 | O173: -217418.5011 | R173: 161 | S173: 356000.5312 | T173: 259739.0938 | U173: 282649.9164
B174: 163 | C174: 734485 | D174: 1200000.5 | F174: 184393.0421 | G174: 431519.9536 | I174: 3.400079397e+10 | J174: 1.862094704e+11 | L174: 7.956927697e+10 | N174: 829879.0339 | O174: -95394.03389 | R174: 162 | S174: 1272400.5 | T174: 659402.9375 | U174: 876821.4386
B175: 164 | C175: 531188.125 | D175: 716000.5625 | F175: -18903.83291 | G175: -52479.98388 | I175: 357354898.8 | J175: 2754148708 | L175: 992072846.4 | N175: 516065.2087 | O175: 15122.91629 | R175: 163 | S175: 1200000.5 | T175: 734485 | U175: 829879.0339
B176: 165 | C176: 996631.125 | D176: 1100000.5 | F176: 446539.1671 | G176: 331519.9536 | I176: 1.993972277e+11 | J176: 1.099054796e+11 | L176: 1.48036644e+11 | N176: 765041.4583 | O176: 231589.6667 | R176: 164 | S176: 716000.5625 | T176: 531188.125 | U176: 516065.2087
B177: 166 | C177: 389334.6875 | D177: 900000.875 | F177: -160757.2704 | G177: 131520.3286 | I177: 2.584289999e+10 | J177: 1.729759684e+10 | L177: -2.114284903e+10 | N177: 635366.5504 | O177: -246031.8629 | R177: 165 | S177: 1100000.5 | T177: 996631.125 | U177: 765041.4583
B178: 167 | C178: 191743.5938 | D178: 224000.875 | F178: -358348.3642 | G178: -544479.6714 | I178: 1.284135501e+11 | J178: 2.964581125e+11 | L178: 1.951133996e+11 | N178: 197064.5396 | O178: -5320.945838 | R178: 166 | S178: 900000.875 | T178: 389334.6875 | U178: 635366.5504
B179: 168 | C179: 598241.8125 | D179: 1225000.875 | F179: 48149.85459 | G179: 456520.3286 | I179: 2318408497 | J179: 2.084108104e+11 | L179: 2.198138744e+10 | N179: 846088.6709 | O179: -247846.8584 | R179: 167 | S179: 224000.875 | T179: 191743.5938 | U179: 197064.5396
B180: 169 | C180: 190151.25 | D180: 296000.875 | F180: -359940.7079 | G180: -472479.6714 | I180: 1.295573132e+11 | J180: 2.232370399e+11 | L180: 1.700646674e+11 | N180: 243747.594 | O180: -53596.34399 | R180: 168 | S180: 1225000.875 | T180: 598241.8125 | U180: 846088.6709
B181: 170 | C181: 640030 | D181: 845000.875 | F181: 89938.04209 | G181: 76520.32862 | I181: 8088851415 | J181: 5855360692 | L181: 6882088536 | N181: 599705.8838 | O181: 40324.1162 | R181: 169 | S181: 296000.875 | T181: 190151.25 | U181: 243747.594
B182: 171 | C182: 727194.25 | D182: 797408.875 | F182: 177102.2921 | G182: 28928.32862 | I182: 3.136522186e+10 | J182: 836848196.9 | L182: 5123273305 | N182: 568848.3848 | O182: 158345.8652 | R182: 170 | S182: 845000.875 | T182: 640030 | U182: 599705.8838
B183: 172 | C183: 227203.5312 | D183: 248142.8594 | F183: -322888.4267 | G183: -520337.687 | I183: 1.042569361e+11 | J183: 2.707513085e+11 | L183: 1.680110171e+11 | N183: 212717.6169 | O183: 14485.9143 | R183: 171 | S183: 797408.875 | T183: 727194.25 | U183: 568848.3848
B184: 173 | C184: 799721.0625 | D184: 1094000.875 | F184: 249629.1046 | G184: 325520.3286 | I184: 6.231468986e+10 | J184: 1.059634843e+11 | L184: 8.125934816e+10 | N184: 761151.4469 | O184: 38569.61556 | R184: 172 | S184: 248142.8594 | T184: 227203.5312 | U184: 212717.6169
B185: 174 | C185: 490566.4375 | D185: 687316.875 | F185: -59525.52041 | G185: -81163.67138 | I185: 3543287580 | J185: 6587541551 | L185: 4831309777 | N185: 497467.4012 | O185: -6900.963657 | R185: 173 | S185: 1094000.875 | T185: 799721.0625 | U185: 761151.4469
B186: 175 | C186: 596990.8125 | D186: 1230000.75 | F186: 46898.85459 | G186: 461520.2036 | I186: 2199502562 | J186: 2.130008984e+11 | L186: 2.164476892e+10 | N186: 849330.4686 | O186: -252339.6561 | R186: 174 | S186: 687316.875 | T186: 490566.4375 | U186: 497467.4012
B187: 176 | C187: 320282.75 | D187: 330000.5312 | F187: -229809.2079 | G187: -438480.0151 | I187: 5.281227204e+10 | J187: 1.922647237e+11 | L187: 1.00766745e+11 | N187: 265792.1468 | O187: 54490.6032 | R187: 175 | S187: 1230000.75 | T187: 596990.8125 | U187: 849330.4686
B188: 177 | C188: 375497.8438 | D188: 800000.5625 | F188: -174594.1142 | G188: 31520.01612 | I188: 3.04831047e+10 | J188: 993511416.4 | L188: -5503209293 | N188: 570528.7722 | O188: -195030.9284 | R188: 176 | S188: 330000.5312 | T188: 320282.75 | U188: 265792.1468
B189: 178 | C189: 835477.3125 | D189: 852743 | F189: 285385.3546 | G189: 84262.45362 | I189: 8.144480061e+10 | J189: 7100161090 | L189: 2.404727021e+10 | N189: 604725.6899 | O189: 230751.6226 | R189: 177 | S189: 800000.5625 | T189: 375497.8438 | U189: 570528.7722
B190: 179 | C190: 304474.1562 | D190: 545081 | F190: -245617.8017 | G190: -223399.5464 | I190: 6.032810449e+10 | J190: 4.990735732e+10 | L190: 5.487090547e+10 | N190: 405245.1082 | O190: -100770.952 | R190: 178 | S190: 852743 | T190: 835477.3125 | U190: 604725.6899
B191: 180 | C191: 288033.9375 | D191: 645422 | F191: -262058.0204 | G191: -123058.5464 | I191: 6.867440606e+10 | J191: 1.514340584e+10 | L191: 3.224847906e+10 | N191: 470303.7799 | O191: -182269.8424 | R191: 179 | S191: 545081 | T191: 304474.1562 | U191: 405245.1082
B192: 181 | C192: 192513.9219 | D192: 215901 | F192: -357578.036 | G192: -552579.5464 | I192: 1.278620519e+11 | J192: 3.053441551e+11 | L192: 1.975903089e+11 | N192: 191812.777 | O192: 701.1448606 | R192: 180 | S192: 645422 | T192: 288033.9375 | U192: 470303.7799
B193: 182 | C193: 165575.8906 | D193: 374485 | F193: -384516.0673 | G193: -393995.5464 | I193: 1.47852606e+11 | J193: 1.552324906e+11 | L193: 1.51497618e+11 | N193: 294634.7978 | O193: -129058.9072 | R193: 181 | S193: 215901 | T193: 192513.9219 | U193: 191812.777
B194: 183 | C194: 193949.0938 | D194: 314260.8438 | F194: -356142.8642 | G194: -454219.7026 | I194: 1.268377397e+11 | J194: 2.063155383e+11 | L194: 1.617671059e+11 | N194: 255586.915 | O194: -61637.82127 | R194: 182 | S194: 374485 | T194: 165575.8906 | U194: 294634.7978
B195: 184 | C195: 173130.8281 | D195: 272970.8438 | F195: -376961.1298 | G195: -495509.7026 | I195: 1.420996934e+11 | J195: 2.455298654e+11 | L195: 1.867878973e+11 | N195: 228815.4801 | O195: -55684.65195 | R195: 183 | S195: 314260.8438 | T195: 193949.0938 | U195: 255586.915
B196: 185 | C196: 366911.375 | D196: 420000.5312 | F196: -183180.5829 | G196: -348480.0151 | I196: 3.355512596e+10 | J196: 1.214383209e+11 | L196: 6.38347723e+10 | N196: 324145.9648 | O196: 42765.4102 | R196: 184 | S196: 272970.8438 | T196: 173130.8281 | U196: 228815.4801
B197: 186 | C197: 227462.875 | D197: 242000.875 | F197: -322629.0829 | G197: -526479.6714 | I197: 1.040895251e+11 | J197: 2.771808444e+11 | L197: 1.698576535e+11 | N197: 208735.3032 | O197: 18727.57181 | R197: 185 | S197: 420000.5312 | T197: 366911.375 | U197: 324145.9648
B198: 187 | C198: 242387.1094 | D198: 363132.875 | F198: -307704.8485 | G198: -405347.6714 | I198: 9.468227381e+10 | J198: 1.643067347e+11 | L198: 1.247274438e+11 | N198: 287274.3552 | O198: -44887.24584 | R198: 186 | S198: 242000.875 | T198: 227462.875 | U198: 208735.3032
B199: 188 | C199: 140519.4375 | D199: 162000.875 | F199: -409572.5204 | G199: -606479.6714 | I199: 1.677496495e+11 | J199: 3.678175918e+11 | L199: 2.483974076e+11 | N199: 156865.2427 | O199: -16345.80524 | R199: 187 | S199: 363132.875 | T199: 242387.1094 | U199: 287274.3552
B200: 189 | C200: 440902.5 | D200: 616500.8125 | F200: -109189.4579 | G200: -151979.7339 | I200: 1.192233772e+10 | J200: 2.309783951e+10 | L200: 1.659458476e+10 | N200: 451551.9831 | O200: -10649.48313 | R200: 188 | S200: 162000.875 | T200: 140519.4375 | U200: 156865.2427
B201: 190 | C201: 918233.125 | D201: 1221000.75 | F201: 368141.1671 | G201: 452520.2036 | I201: 1.355279189e+11 | J201: 2.047745347e+11 | L201: 1.665913159e+11 | N201: 843495.0868 | O201: 74738.03815 | R201: 189 | S201: 616500.8125 | T201: 440902.5 | U201: 451551.9831
B202: 191 | C202: 206004.5625 | D202: 470000.5625 | F202: -344087.3954 | G202: -298479.9839 | I202: 1.183961357e+11 | J202: 8.909030078e+10 | L202: 1.027032002e+11 | N202: 356564.7728 | O202: -150560.2103 | R202: 190 | S202: 1221000.75 | T202: 918233.125 | U202: 843495.0868
B203: 192 | C203: 231948.2656 | D203: 355000.5625 | F203: -318143.6923 | G203: -413479.9839 | I203: 1.012154089e+11 | J203: 1.709656971e+11 | L203: 1.315460488e+11 | N203: 282001.561 | O203: -50053.29533 | R203: 191 | S203: 470000.5625 | T203: 206004.5625 | U203: 356564.7728
B204: 193 | C204: 624357.375 | D204: 1021723.562 | F204: 74265.41709 | G204: 253243.0161 | I204: 5515352175 | J204: 6.413202521e+10 | L204: 1.880719822e+10 | N204: 714288.5898 | O204: -89931.21483 | R204: 192 | S204: 355000.5625 | T204: 231948.2656 | U204: 282001.561
... 945 more rows

Sheet Hoja3
B1: POBLACIÓN | F1: MUESTRA ALEATORIA 100 OBSERVACIONES | R1: MUESTRA DE 100 OBSERVACIONES | AO1: MACRO 3 Ctrl+c
A2: Individuo | B2: Consumo | C2: Renta | F2: Individuo | G2: Consumo | H2: Renta | AB2: MACRO 1 Ctrl+a | AG2: MACRO 2 Ctrl+b | AO2: DIBUJO DE LA FUNCIÓN DE DENSIDAD DEL ESTIMADOR BAJO LA
A3: 1 | B3: 534076.5 | C3: 570000 | E3: 1 | F3: 1 | G3: =VLOOKUP(F3,$A$3:$C$1133,2,FALSE) -> 534076.5 | H3: =VLOOKUP(F3,$A$3:$C$1133,3,FALSE) -> 570000 | R3: Desviaciones | S3: media | U3: Productos cruzados | W3: Valores | AA3: Desviaciones media | AC3: Estimaciones para distintas muestras | AG3: Columna de los estimadores | AK3: Columna de los estimadores fijados | AO3: HIPÓTESIS DE NORMALIDAD
A4: 2 | B4: 396951.7188 | C4: 531000 | E4: 2 | F4: =RANDBETWEEN(1,1131) -> 483 | G4: 196710.25 | H4: 252000.875 | L4: Consumo | M4: Renta | O4: Desviaciones media | R4: al cuadrado | U4: Desviaciones media | W4: Ajustados | X4: Residuos | Y4: Residuos cuadrado | Z4: Desviaciones media | AA4: al cuadrado del | AC4: beta_0 | AD4: beta_1 | AG4: beta_0 | AH4: beta_1 | AK4: beta_0 | AL4: beta_1 | AO4: beta_1 | AP4: f(beta_1) | AU4: GRÁFICO DE LA FUNCIÓN DE DENSIDAD DEL ESTIMADOR BETA 1:
A5: 3 | B5: 154712.7969 | C5: 175100 | E5: 3 | F5: 962 | G5: 744308.25 | H5: 1160000.5 | K5: Obser. | L5: CO | M5: REN | O5: CO | P5: REN | R5: CO | S5: REN | U5: CO*REN | W5: CO | Z5: CO ajustado | AA5: CO ajustado | AC5: =M112 -> 68060.00123 | AD5: =M113 -> 0.6007568507 | AK5: -24587.30411 | AL5: 0.7890503975 | AO5: =AL5 -> 0.7890503975 | AP5: =_xlfn.NORM.DIST(AO5,AL$1005,AL$1007,FALSE) -> 0.4679039795
A6: 4 | B6: 347453.1875 | C6: 420000 | E6: 4 | F6: 460 | G6: 752131.4375 | H6: 900000.5625 | K6: 1 | L6: =G3 -> 534076.5 | M6: =H3 -> 570000 | O6: =+L6-L$108 -> -21642.52352 | P6: =+M6-M$108 -> -241741.0925 | R6: =+O6^2 -> 468398824.1 | S6: =+P6^2 -> 5.84387558e+10 | U6: =+O6*P6 -> 5231887279 | W6: =+$M$112+$M$113*M6 -> 410491.4061 | X6: =+L6-W6 -> 123585.0939 | Y6: =+X6^2 -> 1.527327543e+10 | Z6: =(W6-L$108) -> -145227.6174 | AA6: =(W6-L$108)^2 -> 2.109106086e+10 | AK6: 65184.44748 | AL6: 0.6601546202 | AO6: =AL6 -> 0.6601546202 | AP6: =_xlfn.NORM.DIST(AO6,AL$1005,AL$1007,FALSE) -> 6.224762353 | AU6: 1. SELECCIONAMOS beta_1 y f(beta_1)
A7: 5 | B7: 193963.2969 | C7: 294000 | E7: 5 | F7: 331 | G7: 389637.5312 | H7: 772000.625 | K7: =(K6+1) -> 2 | L7: =G4 -> 196710.25 | M7: 252000.875 | O7: -359008.7735 | P7: -559740.2175 | R7: =+O7^2 -> 1.288872995e+11 | S7: =+P7^2 -> 3.133091111e+11 | U7: =+O7*P7 -> 2.00951649e+11 | W7: 219451.2533 | X7: =+L7-W7 -> -22741.00326 | Y7: =+X7^2 -> 517153229.2 | Z7: -336267.7703 | AA7: 1.130760133e+11 | AK7: 89179.83394 | AL7: 0.6054072622 | AO7: 0.6054072622 | AP7: 5.160402039 | AU7: 2. Insertar gráfico
A8: 6 | B8: 224261 | C8: 231000 | E8: 6 | F8: 172 | G8: 227203.5312 | H8: 248142.8594 | K8: =(K7+1) -> 3 | L8: =G5 -> 744308.25 | M8: 1160000.5 | O8: 188589.2265 | P8: 348259.4075 | R8: 3.556589635e+10 | S8: 1.212846149e+11 | U8: 6.567797228e+10 | W8: 764938.2484 | X8: -20629.99838 | Y8: 425596833.2 | Z8: 209219.2249 | AA8: 4.377268405e+10 | AK8: 68761.02409 | AL8: 0.6022024033 | AO8: 0.6022024033 | AP8: 4.984168701 | AU8: 3. Seleccionamos gráfico de dispersión por puntos.
A9: 7 | B9: 718746.4375 | C9: 1035000 | E9: 7 | F9: 252 | G9: 611122.6875 | H9: 881294.0625 | K9: 4 | L9: =G6 -> 752131.4375 | M9: 900000.5625 | O9: 196412.414 | P9: 88259.47 | R9: 3.857783637e+10 | S9: 7789734045 | U9: 1.733525556e+10 | W9: 608741.5048 | X9: 143389.9327 | Y9: 2.056067281e+10 | Z9: 53022.48124 | AA9: 2811383517 | AK9: 73917.61153 | AL9: 0.5963866978 | AO9: 0.5963866978 | AP9: 4.648279234 | AU9: 4. Corregimos el eje de las x (beta_1) para visualizar mejor el gráfico.
A10: 8 | B10: 804264.6875 | C10: 1304400 | E10: 8 | F10: 612 | G10: 572464 | H10: 900000 | K10: 5 | L10: =G7 -> 389637.5312 | M10: 772000.625 | O10: -166081.4923 | P10: -39740.4675 | R10: 2.758306207e+10 | S10: 1579304757 | U10: 6600156146 | W10: 531844.6654 | X10: -142207.1342 | Y10: 2.022286901e+10 | Z10: -23874.3581 | AA10: 569984974.7 | AK10: 92207.91648 | AL10: 0.6138332256 | AO10: 0.6138332256 | AP10: 5.583568855
A11: 9 | B11: 410573.5 | C11: 435000 | E11: 9 | F11: 910 | G11: 704721.25 | H11: 990001.1875 | K11: 6 | L11: =G8 -> 227203.5312 | M11: 248142.8594 | O11: -328515.4923 | P11: -563598.2331 | R11: 1.079224287e+11 | S11: 3.176429684e+11 | U11: 1.85150751e+11 | W11: 217133.5239 | X11: 10070.00731 | Y11: 101405047.2 | Z11: -338585.4996 | AA11: 1.146401405e+11 | AK11: 79187.82145 | AL11: 0.6217820496 | AO11: 0.6217820496 | AP11: 5.915169671
A12: 10 | B12: 669460.8125 | C12: 904185 | E12: 10 | F12: 1031 | G12: 362232.9062 | H12: 847224 | K12: 7 | L12: =G9 -> 611122.6875 | M12: 881294.0625 | O12: 55403.66398 | P12: 69552.97 | R12: 3069565983 | S12: 4837615636 | U12: 3853489379 | W12: 597503.4467 | X12: 13619.24077 | Y12: 185483719.2 | Z12: 41784.42321 | AA12: 1745938023 | AK12: 76372.2828 | AL12: 0.6136652396 | AO12: 0.6136652396 | AP12: 5.575792229
A13: 11 | B13: 1166477.875 | C13: 1410000 | E13: 11 | F13: 467 | G13: 871397.1875 | H13: 1170001.25 | K13: 8 | L13: =G10 -> 572464 | M13: 900000 | O13: 16744.97648 | P13: 88258.9075 | R13: 280394237.5 | S13: 7789634753 | U13: 1477893331 | W13: 608741.1668 | X13: -36277.16683 | Y13: 1316032833 | Z13: 53022.14331 | AA13: 2811347682 | AK13: 69932.57683 | AL13: 0.6092788955 | AO13: 0.6092788955 | AP13: 5.362794445
A14: 12 | B14: 670851.75 | C14: 1073340 | E14: 12 | F14: 320 | G14: 882275 | H14: 1185501.25 | K14: 9 | L14: =G11 -> 704721.25 | M14: 990001.1875 | O14: 149002.2265 | P14: 178260.095 | R14: 2.22016635e+10 | S14: 3.177666147e+10 | U14: 2.656115105e+10 | W14: 662809.9968 | X14: 41911.25321 | Y14: 1756553146 | Z14: 107090.9733 | AA14: 1.146847656e+10 | AK14: 36040.57548 | AL14: 0.6435475249 | AO14: 0.6435475249 | AP14: 6.377132016
A15: 13 | B15: 776812.4375 | C15: 1299170 | E15: 13 | F15: 158 | G15: 996776.375 | H15: 1847168.625 | K15: 10 | L15: =G12 -> 362232.9062 | M15: 847224 | O15: -193486.1173 | P15: 35482.9075 | R15: 3.743687757e+10 | S15: 1259036725 | U15: -6865450001 | W15: 577035.6233 | X15: -214802.717 | Y15: 4.614020724e+10 | Z15: 21316.59976 | AA15: 454397425.4 | AK15: 94243.88027 | AL15: 0.6071252293 | AO15: 0.6071252293 | AP15: 5.251736081
A16: 14 | B16: 466129.9062 | C16: 680000 | E16: 14 | F16: 957 | G16: 793477.5625 | H16: 1856000 | K16: 11 | L16: =G13 -> 871397.1875 | M16: 1170001.25 | O16: 315678.164 | P16: 358260.1575 | R16: 9.965270322e+10 | S16: 1.283503405e+11 | U16: 1.130949087e+11 | W16: 770946.2675 | X16: 100450.92 | Y16: 1.009038734e+10 | Z16: 215227.2439 | AA16: 4.632276653e+10 | AK16: 10233.1051 | AL16: 0.7126516883 | AO16: 0.7126516883 | AP16: 3.624759231
A17: 15 | B17: 501561.6875 | C17: 504000 | E17: 15 | F17: 567 | G17: 1172978.5 | H17: 1860000.625 | K17: 12 | L17: =G14 -> 882275 | M17: 1185501.25 | O17: 326555.9765 | P17: 373760.1575 | R17: 1.066388058e+11 | S17: 1.396966553e+11 | U17: 1.220536132e+11 | W17: 780257.9986 | X17: 102017.0014 | Y17: 1.040746857e+10 | Z17: 224538.9751 | AA17: 5.041775135e+10 | AK17: 20311.58824 | AL17: 0.6930703603 | AO17: 0.6930703603 | AP17: 4.816159425
A18: 16 | B18: 187070.875 | C18: 212000 | E18: 16 | F18: 1066 | G18: 635587.8125 | H18: 840000.5 | K18: 13 | L18: =G15 -> 996776.375 | M18: 1847168.625 | O18: 441057.3515 | P18: 1035427.532 | R18: 1.945315873e+11 | S18: 1.072110175e+12 | U18: 4.566829251e+11 | W18: 1177759.207 | X18: -180982.832 | Y18: 3.275478549e+10 | Z18: 622040.1835 | AA18: 3.869339899e+11 | AK18: 123993.5364 | AL18: 0.5346844119 | AO18: 0.5346844119 | AP18: 1.300932361
A19: 17 | B19: 488226.7812 | C19: 683000 | E19: 17 | F19: 867 | G19: 1522236.125 | H19: 1914471.875 | K19: 14 | L19: =G16 -> 793477.5625 | M19: 1856000 | O19: 237758.539 | P19: 1044258.907 | R19: 5.652912286e+10 | S19: 1.090476666e+12 | U19: 2.482814722e+11 | W19: 1183064.716 | X19: -389587.1536 | Y19: 1.517781502e+11 | Z19: 627345.6926 | AA19: 3.93562618e+11 | AK19: 102337.2698 | AL19: 0.5696362999 | AO19: 0.5696362999 | AP19: 3.016460297
A20: 18 | B20: 385667.2812 | C20: 427640 | E20: 18 | F20: 176 | G20: 320282.75 | H20: 330000.5312 | K20: 15 | L20: =G17 -> 1172978.5 | M20: 1860000.625 | O20: 617259.4765 | P20: 1048259.532 | R20: 3.810092613e+11 | S20: 1.098848047e+12 | U20: 6.470481303e+11 | W20: 1185468.119 | X20: -12489.61894 | Y20: 155990581.3 | Z20: 629749.0954 | AA20: 3.965839232e+11 | AK20: 2968.153083 | AL20: 0.7418562882 | AO20: 0.7418562882 | AP20: 1.977005949
A21: 19 | B21: 378169.7812 | C21: 391800 | E21: 19 | F21: 161 | G21: 259739.0938 | H21: 356000.5312 | K21: 16 | L21: =G18 -> 635587.8125 | M21: 840000.5 | O21: 79868.78898 | P21: 28259.4075 | R21: 6379023454 | S21: 798594112.3 | U21: 2257044654 | W21: 572696.0562 | X21: 62891.75633 | Y21: 3955373015 | Z21: 16977.03265 | AA21: 288219637.6 | AK21: 104477.6668 | AL21: 0.5605994793 | AO21: 0.5605994793 | AP21: 2.500811862
A22: 20 | B22: 1062443.75 | C22: 1410574 | E22: 20 | F22: 198 | G22: 545589.5625 | H22: 592850.6875 | K22: 17 | L22: =G19 -> 1522236.125 | M22: 1914471.875 | O22: 966517.1015 | P22: 1102730.782 | R22: 9.341553075e+11 | S22: 1.216015179e+12 | U22: 1.06580816e+12 | W22: 1218192.096 | X22: 304044.0295 | Y22: 9.244277185e+10 | Z22: 662473.072 | AA22: 4.388705712e+11 | AK22: 63005.85977 | AL22: 0.6627977255 | AO22: 0.6627977255 | AP22: 6.160601651
A23: 21 | B23: 295932.5625 | C23: 340384 | E23: 21 | F23: 1116 | G23: 580665.0625 | H23: 616000.625 | K23: 18 | L23: =G20 -> 320282.75 | M23: 330000.5312 | O23: -235436.2735 | P23: -481740.5613 | R23: 5.543023889e+10 | S23: 2.320739684e+11 | U23: 1.134192025e+11 | W23: 266310.0811 | X23: 53972.6689 | Y23: 2913048988 | Z23: -289408.9424 | AA23: 8.375753595e+10 | AK23: 16597.25671 | AL23: 0.7085699532 | AO23: 0.7085699532 | AP23: 3.877242437
A24: 22 | B24: 914296.625 | C24: 1436000 | E24: 22 | F24: 50 | G24: 353305.4688 | H24: 447222 | K24: 19 | L24: =G21 -> 259739.0938 | M24: 356000.5312 | O24: -295979.9298 | P24: -455740.5613 | R24: 8.760411882e+10 | S24: 2.076994592e+11 | U24: 1.348900593e+11 | W24: 281929.7592 | X24: -22190.66547 | Y24: 492425633.9 | Z24: -273789.2643 | AA24: 7.496056124e+10 | AK24: 44627.78189 | AL24: 0.6632438187 | AO24: 0.6632438187 | AP24: 6.148753698
A25: 23 | B25: 947279.375 | C25: 958000 | E25: 23 | F25: 325 | G25: 596823 | H25: 712001 | K25: 20 | L25: =G22 -> 545589.5625 | M25: 592850.6875 | O25: -10129.46102 | P25: -218890.405 | R25: 102605980.5 | S25: 4.79130094e+10 | U25: 2217241824 | W25: 424219.1132 | X25: 121370.4493 | Y25: 1.473078597e+10 | Z25: -131499.9103 | AA25: 1.729222642e+10 | AK25: 3337.434321 | AL25: 0.7439181978 | AO25: 0.7439181978 | AP25: 1.878611842
A26: 24 | B26: 521469.25 | C26: 540000 | E26: 24 | F26: 948 | G26: 811975.5 | H26: 1178571.5 | K26: 21 | L26: =G23 -> 580665.0625 | M26: 616000.625 | O26: 24946.03898 | P26: -195740.4675 | R26: 622304861 | S26: 3.831433062e+10 | U26: -4882949333 | W26: 438126.5967 | X26: 142538.4658 | Y26: 2.031721423e+10 | Z26: -117592.4268 | AA26: 1.382797884e+10 | AK26: 16546.60145 | AL26: 0.7108206203 | AO26: 0.7108206203 | AP26: 3.737894224
A27: 25 | B27: 142627.5469 | C27: 152490 | E27: 25 | F27: 181 | G27: 192513.9219 | H27: 215901 | K27: 22 | L27: =G24 -> 353305.4688 | M27: 447222 | O27: -202413.5548 | P27: -364519.0925 | R27: 4.097124715e+10 | S27: 1.328741688e+11 | U27: 7.378360529e+10 | W27: 336731.6815 | X27: 16573.78725 | Y27: 274690423.9 | Z27: -218987.342 | AA27: 4.795545596e+10 | AK27: 54782.67879 | AL27: 0.6378156918 | AO27: 0.6378156918 | AP27: 6.326059328
A28: 26 | B28: 995292.0625 | C28: 1345369 | E28: 26 | F28: 278 | G28: 222128 | H28: 512000.5625 | K28: 23 | L28: =G25 -> 596823 | M28: 712001 | O28: 41103.97648 | P28: -99740.0925 | R28: 1689536883 | S28: 9948086052 | U28: -4099714417 | W28: 495799.4797 | X28: 101023.5203 | Y28: 1.020575166e+10 | Z28: -59919.54386 | AA28: 3590351736 | AK28: 52763.40754 | AL28: 0.6207037361 | AO28: 0.6207037361 | AP28: 5.874623915
A29: 27 | B29: 458931.9062 | C29: 590000 | E29: 27 | F29: 249 | G29: 637159 | H29: 668000.6875 | K29: 24 | L29: =G26 -> 811975.5 | M29: 1178571.5 | O29: 256256.4765 | P29: 366830.4075 | R29: 6.566738174e+10 | S29: 1.345645479e+11 | U29: 9.400266769e+10 | W29: 776094.9039 | X29: 35880.59615 | Y29: 1287417180 | Z29: 220375.8803 | AA29: 4.856552864e+10 | AK29: 73574.58829 | AL29: 0.6074756984 | AO29: 0.6074756984 | AP29: 5.270077049
A30: 28 | B30: 186540.125 | C30: 300000 | E30: 28 | F30: 665 | G30: 723932 | H30: 990000.8125 | K30: 25 | L30: =G27 -> 192513.9219 | M30: 215901 | O30: -363205.1016 | P30: -595840.0925 | R30: 1.319179459e+11 | S30: 3.550254158e+11 | U30: 2.164121614e+11 | W30: 197764.006 | X30: -5250.084169 | Y30: 27563383.78 | Z30: -357955.0175 | AA30: 1.281317945e+11 | AK30: 52790.21043 | AL30: 0.6370108163 | AO30: 0.6370108163 | AP30: 6.314666937
A31: 29 | B31: 831097.5625 | C31: 1200000 | E31: 29 | F31: 592 | G31: 295647.625 | H31: 755427.5625 | K31: 26 | L31: =G28 -> 222128 | M31: 512000.5625 | O31: -333591.0235 | P31: -299740.53 | R31: 1.11282971e+11 | S31: 8.984438532e+10 | U31: 9.999075019e+10 | W31: 375647.8467 | X31: -153519.8467 | Y31: 2.356834333e+10 | Z31: -180071.1768 | AA31: 3.242562872e+10 | AK31: 92907.74855 | AL31: 0.6259096074 | AO31: 0.6259096074 | AP31: 6.056294594
A32: 30 | B32: 491854.125 | C32: 843164 | E32: 30 | F32: 287 | G32: 358902.8125 | H32: 429234.5625 | K32: 27 | L32: =G29 -> 637159 | M32: 668000.6875 | O32: 81439.97648 | P32: -143740.405 | R32: 6632469770 | S32: 2.066130403e+10 | U32: -1.17062152e+10 | W32: 469365.9905 | X32: 167793.0095 | Y32: 2.815449404e+10 | Z32: -86353.03302 | AA32: 7456846312 | AK32: 32862.66806 | AL32: 0.7066328988 | AO32: 0.7066328988 | AP32: 3.997173946
A33: 31 | B33: 491573.8438 | C33: 1100000 | E33: 31 | F33: 473 | G33: 890999.25 | H33: 1013000.625 | K33: 28 | L33: =G30 -> 723932 | M33: 990000.8125 | O33: 168212.9765 | P33: 178259.72 | R33: 2.829560546e+10 | S33: 3.177652777e+10 | U33: 2.998559809e+10 | W33: 662809.7715 | X33: 61122.2285 | Y33: 3735926816 | Z33: 107090.748 | AA33: 1.14684283e+10 | AK33: 34835.01848 | AL33: 0.6503630745 | AO33: 0.6503630745 | AP33: 6.368314059
A34: 32 | B34: 400049.5625 | C34: 450000 | E34: 32 | F34: 419 | G34: 523825.1562 | H34: 1118001 | K34: 29 | L34: =G31 -> 295647.625 | M34: 755427.5625 | O34: -260071.3985 | P34: -56313.53 | R34: 6.763713233e+10 | S34: 3171213661 | U34: 1.46455385e+10 | W34: 521888.2846 | X34: -226240.6596 | Y34: 5.118483605e+10 | Z34: -33830.73893 | AA34: 1144518897 | AK34: 35215.62483 | AL34: 0.6461791675 | AO34: 0.6461791675 | AP34: 6.382713874
A35: 33 | B35: 274925.2188 | C35: 691203 | E35: 33 | F35: 97 | G35: =VLOOKUP(F35,$A$3:$C$1133,2,FALSE) -> 82834.50781 | H35: =VLOOKUP(F35,$A$3:$C$1133,3,FALSE) -> 135000.5469 | K35: 30 | L35: =G32 -> 358902.8125 | M35: 429234.5625 | O35: -196816.211 | P35: -382506.53 | R35: 3.873662092e+10 | S35: 1.463112455e+11 | U35: 7.528348592e+10 | W35: 325925.6052 | X35: 32977.20731 | Y35: 1087496202 | Z35: -229793.4183 | AA35: 5.28050151e+10 | AK35: 103125.2781 | AL35: 0.5457589793 | AO35: 0.5457589793 | AP35: 1.756630999
A36: 34 | B36: 220953.0156 | C36: 295000 | E36: 34 | F36: 963 | G36: 678352.3125 | H36: 954000.5 | K36: 31 | L36: =G33 -> 890999.25 | M36: 1013000.625 | O36: 335280.2265 | P36: 201259.5325 | R36: 1.124128303e+11 | S36: 4.050539942e+10 | U36: 6.747834164e+10 | W36: 676627.0664 | X36: 214372.1836 | Y36: 4.595543309e+10 | Z36: 120908.0429 | AA36: 1.461875484e+10 | AK36: 83475.63375 | AL36: 0.5835684742 | AO36: 0.5835684742 | AP36: 3.86572912
A37: 35 | B37: 713191.3125 | C37: 930000 | E37: 35 | F37: 311 | G37: 362278.5938 | H37: 775323.5 | K37: 32 | L37: =G34 -> 523825.1562 | M37: 1118001 | O37: -31893.86727 | P37: 306259.9075 | R37: 1017218769 | S37: 9.379513094e+10 | U37: -9767812839 | W37: 739706.761 | X37: -215881.6048 | Y37: 4.660486728e+10 | Z37: 183987.7375 | AA37: 3.385148756e+10 | AK37: 107314.916 | AL37: 0.5800332111 | AO37: 0.5800332111 | AP37: 3.647011902
A38: 36 | B38: 499977.375 | C38: 840000 | E38: 36 | F38: 352 | G38: 702636 | H38: 816000.5625 | K38: 33 | L38: =G35 -> 82834.50781 | M38: 135000.5469 | O38: =+L38-L$108 -> -472884.5157 | P38: =+M38-M$108 -> -676740.5456 | R38: 2.236197652e+11 | S38: 4.579777661e+11 | U38: 3.200201252e+11 | W38: =+$M$112+$M$113*M38 -> 149162.5046 | X38: -66327.99679 | Y38: 4399403159 | Z38: =(W38-L$108) -> -406556.5189 | AA38: =(W38-L$108)^2 -> 1.652882031e+11 | AK38: 19664.79869 | AL38: 0.7021498815 | AO38: 0.7021498815 | AP38: 4.273387895
A39: 37 | B39: 468059 | C39: 1380000 | E39: 37 | F39: 836 | G39: 341121.6875 | H39: 506000.8125 | K39: 34 | L39: =G36 -> 678352.3125 | M39: 954000.5 | O39: 122633.289 | P39: 142259.4075 | R39: 1.503892357e+10 | S39: 2.023773902e+10 | U39: 1.744573903e+10 | W39: 641182.3371 | X39: 37169.97536 | Y39: 1381607068 | Z39: 85463.31363 | AA39: 7303977976 | AK39: 55856.18496 | AL39: 0.6684739956 | AO39: 0.6684739956 | AP39: 5.988733341
A40: 38 | B40: 341936.875 | C40: 1750000 | E40: 38 | F40: 181 | G40: 192513.9219 | H40: 215901 | K40: 35 | L40: =G37 -> 362278.5938 | M40: 775323.5 | O40: -193440.4298 | P40: -36417.5925 | R40: 3.741919987e+10 | S40: 1326241043 | U40: 7044634744 | W40: 533840.9053 | X40: -171562.3116 | Y40: 2.943362676e+10 | Z40: -21878.11818 | AA40: 478652055.1 | AK40: 50017.47894 | AL40: 0.6698961704 | AO40: 0.6698961704 | AP40: 5.938750557
A41: 39 | B41: 592696.625 | C41: 1207500 | E41: 39 | F41: 1023 | G41: 513567.6875 | H41: 600001.0625 | K41: 36 | L41: =G38 -> 702636 | M41: 816000.5625 | O41: 146916.9765 | P41: 4259.47 | R41: 2.158459798e+10 | S41: 18143084.68 | U41: 625788453.8 | W41: 558277.9293 | X41: 144358.0707 | Y41: 2.083925258e+10 | Z41: 2558.905783 | AA41: 6547998.805 | AK41: 11287.21742 | AL41: 0.725690301 | AO41: 0.725690301 | AP41: 2.840898687
A42: 40 | B42: 689006.8125 | C42: 1000000 | E42: 40 | F42: 486 | G42: 531032.125 | H42: 1060000.5 | K42: 37 | L42: =G39 -> 341121.6875 | M42: 506000.8125 | O42: -214597.336 | P42: -305740.28 | R42: 4.605201663e+10 | S42: 9.347711881e+10 | U42: 6.56110496e+10 | W42: 372043.4558 | X42: -30921.76828 | Y42: 956155753.6 | Z42: -183675.5677 | AA42: 3.373671418e+10 | AK42: 78755.02474 | AL42: 0.59903228 | AO42: 0.59903228 | AP42: 4.803327276
A43: 41 | B43: 797400.375 | C43: 930000 | E43: 41 | F43: 393 | G43: 249112.6094 | H43: 275075.625 | K43: 38 | L43: =G40 -> 192513.9219 | M43: 215901 | O43: -363205.1016 | P43: -595840.0925 | R43: 1.319179459e+11 | S43: 3.550254158e+11 | U43: 2.164121614e+11 | W43: 197764.006 | X43: -5250.084169 | Y43: 27563383.78 | Z43: -357955.0175 | AA43: 1.281317945e+11 | AK43: 88563.41752 | AL43: 0.5518292168 | AO43: 0.5518292168 | AP43: 2.043550396
A44: 42 | B44: 329242.625 | C44: 462520 | E44: 42 | F44: 304 | G44: 412674.2188 | H44: 578500.625 | K44: 39 | L44: =G41 -> 513567.6875 | M44: 600001.0625 | O44: -42151.33602 | P44: -211740.03 | R44: 1776735128 | S44: 4.48338403e+10 | U44: 8925125152 | W44: 428514.7499 | X44: 85052.93757 | Y44: 7234002189 | Z44: -127204.2736 | AA44: 1.618092722e+10 | AK44: 93689.07424 | AL44: 0.5653813101 | AO44: 0.5653813101 | AP44: 2.768812329
A45: 43 | B45: 212101.7656 | C45: 249484 | E45: 43 | F45: 871 | G45: 867293.125 | H45: 1000000.562 | K45: 40 | L45: =G42 -> 531032.125 | M45: 1060000.5 | O45: -24686.89852 | P45: 248259.4075 | R45: 609442958.3 | S45: 6.163273341e+10 | U45: -6128754799 | W45: 704862.5633 | X45: -173830.4383 | Y45: 3.021702128e+10 | Z45: 149143.5398 | AA45: 2.224379546e+10 | AK45: 174.1895565 | AL45: 0.7348820035 | AO45: 0.7348820035 | AP45: 2.330756224
A46: 44 | B46: 648134.6875 | C46: 834000 | E46: 44 | F46: 551 | G46: 306881.4062 | H46: 351000.75 | K46: 41 | L46: =G43 -> 249112.6094 | M46: 275075.625 | O46: -306606.4141 | P46: -536665.4675 | R46: 9.400749319e+10 | S46: 2.88009824e+11 | U46: 1.645450746e+11 | W46: 233313.5674 | X46: 15799.04198 | Y46: 249609727.4 | Z46: -322405.4561 | AA46: 1.039452781e+11 | AK46: 66815.08474 | AL46: 0.6309176928 | AO46: 0.6309176928 | AP46: 6.195668394
A47: 45 | B47: 470205.6875 | C47: 550000 | E47: 45 | F47: 753 | G47: 1240581.375 | H47: 1874002 | K47: 42 | L47: =G44 -> 412674.2188 | M47: 578500.625 | O47: -143044.8048 | P47: -233240.4675 | R47: 2.046181617e+10 | S47: 5.440111568e+10 | U47: 3.336383714e+10 | W47: 415598.2148 | X47: -2923.996062 | Y47: 8549752.971 | Z47: -140120.8087 | AA47: 1.963384103e+10 | AK47: -11226.88067 | AL47: 0.7584381478 | AO47: 0.7584381478 | AP47: 1.27153096
A48: 46 | B48: 451196.4688 | C48: 570000 | E48: 46 | F48: 1130 | G48: 550910.375 | H48: 984000.5625 | K48: 43 | L48: =G45 -> 867293.125 | M48: 1000000.562 | O48: 311574.1015 | P48: 188259.47 | R48: 9.707842072e+10 | S48: 3.544162804e+10 | U48: 5.865677521e+10 | W48: 668817.1898 | X48: 198475.9352 | Y48: 3.939269685e+10 | Z48: 113098.1663 | AA48: 1.279119522e+10 | AK48: 6403.566586 | AL48: 0.7007461304 | AO48: 0.7007461304 | AP48: 4.359128771
A49: 47 | B49: 252466.0625 | C49: 438300 | E49: 47 | F49: 428 | G49: 671423.0625 | H49: 837000.9375 | K49: 44 | L49: =G46 -> 306881.4062 | M49: 351000.75 | O49: -248837.6173 | P49: -460740.3425 | R49: 6.192015977e+10 | S49: 2.122816632e+11 | U49: 1.14649529e+11 | W49: 278926.1064 | X49: 27955.29987 | Y49: 781498790.8 | Z49: -276792.9171 | AA49: 7.661431898e+10 | AK49: 82977.05829 | AL49: 0.6083390712 | AO49: 0.6083390712 | AP49: 5.314820422
A50: 48 | B50: 291984.875 | C50: 298000 | E50: 48 | F50: 187 | G50: 242387.1094 | H50: 363132.875 | K50: 45 | L50: =G47 -> 1240581.375 | M50: 1874002 | O50: 684862.3515 | P50: 1062260.907 | R50: 4.690364405e+11 | S50: 1.128398236e+12 | U50: 7.27502503e+11 | W50: 1193879.541 | X50: 46701.83411 | Y50: 2181061309 | Z50: 638160.5174 | AA50: 4.072488459e+11 | AK50: 84276.321 | AL50: 0.6109644193 | AO50: 0.6109644193 | AP50: 5.4468349
A51: 49 | B51: 162782.9062 | C51: 822000 | E51: 49 | F51: 831 | G51: 886198.5625 | H51: 1380001.25 | K51: 46 | L51: =G48 -> 550910.375 | M51: 984000.5625 | O51: -4808.648516 | P51: 172259.47 | R51: 23123100.55 | S51: 2.9673325e+10 | U51: -828335244.7 | W51: 659205.0802 | X51: -108294.7052 | Y51: 1.172774318e+10 | Z51: 103486.0567 | AA51: 1.070936393e+10 | AK51: 91953.44686 | AL51: 0.5964369264 | AO51: 0.5964369264 | AP51: 4.651253426
A52: 50 | B52: 353305.4688 | C52: 447222 | E52: 50 | F52: 324 | G52: 540995.375 | H52: 974001 | K52: 47 | L52: =G49 -> 671423.0625 | M52: 837000.9375 | O52: 115704.039 | P52: 25259.845 | R52: 1.338742464e+10 | S52: 638059769.4 | U52: 2922666091 | W52: 570894.0484 | X52: 100529.0141 | Y52: 1.010608267e+10 | Z52: 15175.02493 | AA52: 230281381.6 | AK52: 12195.13505 | AL52: 0.688943668 | AO52: 0.688943668 | AP52: 5.049791874
A53: 51 | B53: 831738.125 | C53: 880000 | E53: 51 | F53: 956 | G53: 1237448.5 | H53: 1600000 | K53: 48 | L53: =G50 -> 242387.1094 | M53: 363132.875 | O53: -313331.9141 | P53: -448608.2175 | R53: 9.817688842e+10 | S53: 2.012493328e+11 | U53: 1.405632715e+11 | W53: 286214.5636 | X53: -43827.45421 | Y53: 1920845743 | Z53: -269504.4599 | AA53: 7.263265392e+10 | AK53: 48495.94092 | AL53: 0.6529819815 | AO53: 0.6529819815 | AP53: 6.34483319
A54: 52 | B54: 418626.9688 | C54: 573000 | E54: 52 | F54: 702 | G54: 561083.25 | H54: 786002.625 | K54: 49 | L54: =G51 -> 886198.5625 | M54: 1380001.25 | O54: 330479.539 | P54: 568260.1575 | R54: 1.092167257e+11 | S54: 3.229196066e+11 | U54: 1.877983549e+11 | W54: 897105.2061 | X54: -10906.6436 | Y54: 118954874.5 | Z54: 341386.1826 | AA54: 1.165445257e+11 | AK54: 103424.8102 | AL54: 0.5766881315 | AO54: 0.5766881315 | AP54: 3.441314831
A55: 53 | B55: 330540.4062 | C55: 678000 | E55: 53 | F55: 871 | G55: 867293.125 | H55: 1000000.562 | K55: 50 | L55: =G52 -> 540995.375 | M55: 974001 | O55: -14723.64852 | P55: 162259.9075 | R55: 216785825.6 | S55: 2.632827758e+10 | U55: -2389057846 | W55: 653197.7745 | X55: -112202.3995 | Y55: 1.258937846e+10 | Z55: 97478.75102 | AA55: 9502106900 | AK55: 68225.41432 | AL55: 0.6548307637 | AO55: 0.6548307637 | AP55: 6.32162301
A56: 54 | B56: 608177.6875 | C56: 744000 | E56: 54 | F56: 292 | G56: 1144403.125 | H56: 1500001 | K56: 51 | L56: =G53 -> 1237448.5 | M56: 1600000 | O56: 681729.4765 | P56: 788258.9075 | R56: =+O56^2 -> 4.647550791e+11 | S56: =+P56^2 -> 6.213521053e+11 | U56: =+O56*P56 -> 5.373793323e+11 | W56: 1029270.962 | X56: =+L56-W56 -> 208177.5377 | Y56: =+X56^2 -> 4.33378872e+10 | Z56: 473551.9388 | AA56: 2.242514387e+11 | AK56: 136730.0682 | AL56: 0.5707148178 | AO56: 0.5707148178 | AP56: 3.080406655
A57: 55 | B57: 966917.75 | C57: 1211000 | E57: 55 | F57: 667 | G57: 443973.5 | H57: 600000.5625 | K57: 52 | L57: 561083.25 | M57: 786002.625 | O57: 5364.226484 | P57: -25738.4675 | R57: 28774925.78 | S57: 662468709.2 | U57: -138066969 | W57: 540256.4628 | X57: 20826.78716 | Y57: 433755063.4 | Z57: -15462.56068 | AA57: 239090782.7 | AK57: 84306.71224 | AL57: 0.6032939584 | AO57: 0.6032939584 | AP57: 5.04499555
A58: 56 | B58: 362864.5938 | C58: 440000 | E58: 56 | F58: 910 | G58: 704721.25 | H58: 990001.1875 | K58: 53 | L58: 867293.125 | M58: 1000000.562 | O58: 311574.1015 | P58: 188259.47 | R58: 9.707842072e+10 | S58: 3.544162804e+10 | U58: 5.865677521e+10 | W58: 668817.1898 | X58: 198475.9352 | Y58: 3.939269685e+10 | Z58: 113098.1663 | AA58: 1.279119522e+10 | AK58: -7817.142239 | AL58: 0.7252812324 | AO58: 0.7252812324 | AP58: 2.864593316
A59: 57 | B59: 822663.875 | C59: 972000 | E59: 57 | F59: 1012 | G59: 470499.5938 | H59: 844450.5625 | K59: 54 | L59: =G56 -> 1144403.125 | M59: 1500001 | O59: 588684.1015 | P59: 688259.9075 | R59: 3.465489713e+11 | S59: 4.737017003e+11 | U59: 4.051676652e+11 | W59: 969195.878 | X59: 175207.247 | Y59: 3.069757941e+10 | Z59: 413476.8545 | AA59: 1.709631092e+11 | AK59: 58448.25384 | AL59: 0.6455969657 | AO59: 0.6455969657 | AP59: 6.382453166
A60: 58 | B60: 496476.3125 | C60: 696000 | E60: 58 | F60: 383 | G60: 664417 | H60: 680000.5625 | K60: 55 | L60: =G57 -> 443973.5 | M60: 600000.5625 | O60: -111745.5235 | P60: -211740.53 | R60: 1.248706203e+10 | S60: 4.483405204e+10 | U60: 2.366105637e+10 | W60: 428514.4496 | X60: 15459.05045 | Y60: 238982240.7 | Z60: -127204.574 | AA60: 1.618100364e+10 | AK60: 56519.65644 | AL60: 0.6972260802 | AO60: 0.6972260802 | AP60: 4.571622638
A61: 59 | B61: 1623840.25 | C61: 1720838 | E61: 59 | F61: 901 | G61: 575980.25 | H61: 830000.5625 | K61: 56 | L61: =G58 -> 704721.25 | M61: 990001.1875 | O61: 149002.2265 | P61: 178260.095 | R61: 2.22016635e+10 | S61: 3.177666147e+10 | U61: 2.656115105e+10 | W61: 662809.9968 | X61: 41911.25321 | Y61: 1756553146 | Z61: 107090.9733 | AA61: 1.146847656e+10 | AK61: -11706.9901 | AL61: 0.7156100815 | AO61: 0.7156100815 | AP61: 3.44291221
A62: 60 | B62: 801953 | C62: 1248746 | E62: 60 | F62: 512 | G62: 516422.5312 | H62: 680000.5625 | K62: 57 | L62: =G59 -> 470499.5938 | M62: 844450.5625 | O62: -85219.42977 | P62: 32709.47 | R62: 7262351210 | S62: 1069909428 | U62: -2787482381 | W62: 575369.4617 | X62: -104869.8679 | Y62: 1.09976892e+10 | Z62: 19650.43818 | AA62: 386139720.8 | AK62: 39592.94285 | AL62: 0.6855870355 | AO62: 0.6855870355 | AP62: 5.231316199
A63: 61 | B63: 551966.5 | C63: 614244 | E63: 61 | F63: 112 | G63: 726676.5 | H63: 812000.5625 | K63: 58 | L63: =G60 -> 664417 | M63: 680000.5625 | O63: 108697.9765 | P63: -131740.53 | R63: 1.181525009e+10 | S63: 1.735556724e+10 | U63: -1.431992903e+10 | W63: 476574.9976 | X63: 187842.0024 | Y63: 3.528461786e+10 | Z63: -79144.02591 | AA63: 6263776837 | AK63: 33582.07143 | AL63: 0.7048148995 | AO63: 0.7048148995 | AP63: 4.109514733
A64: 62 | B64: 265574.3125 | C64: 349824 | E64: 62 | F64: 901 | G64: 575980.25 | H64: 830000.5625 | K64: 59 | L64: =G61 -> 575980.25 | M64: 830000.5625 | O64: 20261.22648 | P64: 18259.47 | R64: 410517298.7 | S64: 333408244.7 | U64: 369959257.2 | W64: 566688.5252 | X64: 9291.724792 | Y64: 86336149.62 | Z64: 10969.50169 | AA64: 120329967.4 | AK64: 155509.8148 | AL64: 0.4974097293 | AO64: 0.4974097293 | AP64: 0.3759205557
A65: 63 | B65: 142017.3438 | C65: 420000 | E65: 63 | F65: 736 | G65: 461958.2188 | H65: 1252666 | K65: 60 | L65: =G62 -> 516422.5312 | M65: 680000.5625 | O65: -39296.49227 | P65: -131740.53 | R65: 1544214304 | S65: 1.735556724e+10 | U65: 5176940718 | W65: 476574.9976 | X65: 39847.53364 | Y65: 1587825937 | Z65: -79144.02591 | AA65: 6263776837 | AK65: 98343.53475 | AL65: 0.5838443975 | AO65: 0.5838443975 | AP65: 3.882819076
A66: 64 | B66: 498792.5938 | C66: 756000 | E66: 64 | F66: 1047 | G66: 392637.9688 | H66: 612000.5 | K66: 61 | L66: =G63 -> 726676.5 | M66: 812000.5625 | O66: 170957.4765 | P66: 259.47 | R66: 2.922645877e+10 | S66: 67324.6809 | U66: 44358336.42 | W66: 555874.9019 | X66: 170801.5981 | Y66: 2.917318591e+10 | Z66: 155.87838 | AA66: 24298.06936 | AK66: 45399.8165 | AL66: 0.6478754681 | AO66: 0.6478754681 | AP66: 6.380316619
A67: 65 | B67: 814384.1875 | C67: 983200 | E67: 65 | F67: 223 | G67: =VLOOKUP(F67,$A$3:$C$1133,2,FALSE) -> 375701 | H67: =VLOOKUP(F67,$A$3:$C$1133,3,FALSE) -> 480000.5312 | K67: 62 | L67: =G64 -> 575980.25 | M67: 830000.5625 | O67: 20261.22648 | P67: 18259.47 | R67: 410517298.7 | S67: 333408244.7 | U67: 369959257.2 | W67: 566688.5252 | X67: 9291.724792 | Y67: 86336149.62 | Z67: 10969.50169 | AA67: 120329967.4 | AK67: 62761.81797 | AL67: 0.6445872938 | AO67: 0.6445872938 | AP67: 6.380688375
A68: 66 | B68: 1296079 | C68: 1800000 | E68: 66 | F68: =RANDBETWEEN(1,1131) -> 1004 | G68: 602206.8125 | H68: 997929.5 | K68: 63 | L68: =G65 -> 461958.2188 | M68: 1252666 | O68: -93760.80477 | P68: 440924.9075 | R68: 8791088510 | S68: 1.944147741e+11 | U68: -4.134147417e+10 | W68: 820607.6823 | X68: -358649.4636 | Y68: 1.286294377e+11 | Z68: 264888.6588 | AA68: 7.016600157e+10 | AK68: 45742.04265 | AL68: 0.6472461749 | AO68: 0.6472461749 | AP68: 6.381754253
A69: 67 | B69: 364020.5 | C69: 459650 | E69: 67 | F69: 1011 | G69: 1180502.125 | H69: 1312000.5 | K69: 64 | L69: =G66 -> 392637.9688 | M69: 612000.5 | O69: -163081.0548 | P69: -199740.5925 | R69: 2.659543042e+10 | S69: 3.989630429e+10 | U69: 3.25739065e+10 | W69: 435723.4942 | X69: -43085.52546 | Y69: 1856362505 | Z69: -119995.5293 | AA69: 1.439892705e+10 | AK69: 19990.97112 | AL69: 0.7169349325 | AO69: 0.7169349325 | AP69: 3.362018811
A70: 68 | B70: 234031 | C70: 378727 | E70: 68 | F70: 193 | G70: 624357.375 | H70: 1021723.562 | K70: 65 | L70: =G67 -> 375701 | M70: 480000.5312 | O70: =+L70-L$108 -> -180018.0235 | P70: =+M70-M$108 -> -331740.5613 | R70: 3.240648879e+10 | S70: 1.100518e+11 | U70: 5.971928016e+10 | W70: =+$M$112+$M$113*M70 -> 356423.6087 | X70: 19277.3913 | Y70: 371617815.3 | Z70: =(W70-L$108) -> -199295.4148 | AA70: =(W70-L$108)^2 -> 3.971866237e+10 | AK70: 142264.4505 | AL70: 0.4768281864 | AO70: =AL70 -> 0.4768281864 | AP70: =_xlfn.NORM.DIST(AO70,AL$1005,AL$1007,FALSE) -> 0.1626326932
A71: 69 | B71: 571012.25 | C71: 787101 | E71: 69 | F71: 169 | G71: 190151.25 | H71: 296000.875 | K71: 66 | L71: =G68 -> 602206.8125 | M71: 997929.5 | O71: 46487.78898 | P71: 186188.4075 | R71: 2161114525 | S71: 3.466612309e+10 | U71: 8655487399 | W71: 667572.9848 | X71: -65366.17234 | Y71: 4272736486 | Z71: 111853.9613 | AA71: 1.251130866e+10 | AK71: 105040.6718 | AL71: 0.6022636939 | AO71: 0.6022636939 | AP71: 4.987604907
A72: 70 | B72: 504737.125 | C72: 600000 | E72: 70 | F72: 268 | G72: 244537.6719 | H72: 257475.625 | K72: =(K71+1) -> 67 | L72: =G69 -> 1180502.125 | M72: 1312000.5 | O72: 624783.1015 | P72: 500259.4075 | R72: 3.903539239e+11 | S72: 2.502594748e+11 | U72: 3.125536242e+11 | W72: 856253.2897 | X72: 324248.8353 | Y72: 1.051373072e+11 | Z72: 300534.2662 | AA72: 9.032084514e+10 | AK72: 46617.17179 | AL72: 0.6514876386 | AO72: 0.6514876386 | AP72: 6.359588356
A73: 71 | B73: 507099.1875 | C73: 769323 | E73: 71 | F73: 76 | G73: 711394.625 | H73: 750000 | K73: 68 | L73: =G70 -> 624357.375 | M73: 1021723.562 | O73: 68638.35148 | P73: 209982.47 | R73: 4711223294 | S73: 4.409263771e+10 | U73: 1.441285058e+10 | W73: 681867.4309 | X73: -57510.05589 | Y73: 3307406528 | Z73: 126148.4074 | AA73: 1.591342068e+10 | AK73: 57677.12511 | AL73: 0.6293330938 | AO73: 0.6293330938 | AP73: 6.155498267
A74: 72 | B74: 709019.625 | C74: 1300000 | E74: 72 | F74: 840 | G74: 369576.6875 | H74: 578132 | K74: 69 | L74: =G71 -> 190151.25 | M74: 296000.875 | O74: -365567.7735 | P74: -515740.2175 | R74: 1.33639797e+11 | S74: 2.659879719e+11 | U74: 1.88538003e+11 | W74: 245884.5547 | X74: -55733.30469 | Y74: 3106201251 | Z74: -309834.4688 | AA74: 9.599739807e+10 | AK74: 108107.3837 | AL74: 0.5811738118 | AO74: 0.5811738118 | AP74: 3.71749003
A75: 73 | B75: 403405.8125 | C75: 570700 | E75: 73 | F75: 106 | G75: 642482.5 | H75: 748001.9375 | K75: 70 | L75: =G72 -> 244537.6719 | M75: 257475.625 | O75: -311181.3516 | P75: -554265.4675 | R75: 9.683383361e+10 | S75: 3.072102085e+11 | U75: 1.724770773e+11 | W75: 222740.2468 | X75: 21797.42505 | Y75: 475127738.7 | Z75: -332978.7767 | AA75: 1.108748657e+11 | AK75: 101220.1946 | AL75: 0.5405347447 | AO75: 0.5405347447 | AP75: 1.530570191
A76: 74 | B76: 478871.9062 | C76: 549000 | E76: 74 | F76: 307 | G76: 1028893.25 | H76: 1660000.625 | K76: 71 | L76: =G73 -> 711394.625 | M76: 750000 | O76: 155675.6015 | P76: -61741.0925 | R76: 2.42348929e+10 | S76: 3811962503 | U76: -9611581711 | W76: 518627.6392 | X76: 192766.9858 | Y76: 3.71591108e+10 | Z76: -37091.38429 | AA76: 1375770788 | AK76: 91509.19936 | AL76: 0.5862799842 | AO76: 0.5862799842 | AP76: 4.033577025
A77: 75 | B77: 395260.2812 | C77: 477000 | E77: 75 | F77: 442 | G77: 385646.0312 | H77: 405091.6562 | K77: 72 | L77: =G74 -> 369576.6875 | M77: 578132 | O77: -186142.336 | P77: -233609.0925 | R77: 3.464896926e+10 | S77: 5.45732081e+10 | U77: 4.348454219e+10 | W77: 415376.7608 | X77: -45800.07332 | Y77: 2097646716 | Z77: -140342.2627 | AA77: 1.96959507e+10 | AK77: -3238.617216 | AL77: 0.6996340343 | AO77: 0.6996340343 | AP77: 4.426689589
A78: 76 | B78: 711394.625 | C78: 750000 | E78: 76 | F78: 98 | G78: 317168 | H78: 780000.875 | K78: 73 | L78: =G75 -> 642482.5 | M78: 748001.9375 | O78: 86763.47648 | P78: -63739.155 | R78: 7527900852 | S78: 4062679880 | U78: -5530230676 | W78: 517427.2895 | X78: 125055.2105 | Y78: 1.563880567e+10 | Z78: -38291.73402 | AA78: 1466256894 | AK78: 16843.79754 | AL78: 0.669730614 | AO78: 0.669730614 | AP78: 5.944705852
A79: 77 | B79: 550352.75 | C79: 740000 | E79: 77 | F79: 327 | G79: 132382.5938 | H79: 220000.7812 | K79: 74 | L79: =G76 -> 1028893.25 | M79: 1660000.625 | O79: 473174.2265 | P79: 848259.5325 | R79: 2.238938486e+11 | S79: 7.195442345e+11 | U79: 4.013745481e+11 | W79: 1065316.749 | X79: -36423.49881 | Y79: 1326671266 | Z79: 509597.7253 | AA79: 2.596898416e+11 | AK79: 105214.1822 | AL79: 0.5933218696 | AO79: 0.5933218696 | AP79: 4.464895064
A80: 78 | B80: 395381.0625 | C80: 400000.875 | E80: 78 | F80: 735 | G80: 399076.5 | H80: 700000 | K80: 75 | L80: =G77 -> 385646.0312 | M80: 405091.6562 | O80: -170072.9923 | P80: -406649.4363 | R80: 2.89248227e+10 | S80: 1.65363764e+11 | U80: 6.916008643e+10 | W80: 311421.5889 | X80: 74224.44238 | Y80: 5509267847 | Z80: -244297.4346 | AA80: 5.968123658e+10 | AK80: 40284.77478 | AL80: 0.6970094102 | AO80: 0.6970094102 | AP80: 4.584560588
A81: 79 | B81: 285701.75 | C81: 408643.875 | E81: 79 | F81: 31 | G81: 491573.8438 | H81: 1100000 | K81: 76 | L81: =G78 -> 317168 | M81: 780000.875 | O81: -238551.0235 | P81: -31740.2175 | R81: 5.690659082e+10 | S81: 1007441407 | U81: 7571661371 | W81: 536650.8704 | X81: -219482.8704 | Y81: 4.81727304e+10 | Z81: -19068.1531 | AA81: 363594462.8 | AK81: 8804.159214 | AL81: 0.7333499765 | AO81: 0.7333499765 | AP81: 2.412549946
A82: 80 | B82: 388880.8438 | C82: 452001.1562 | E82: 80 | F82: 703 | G82: 467428.1562 | H82: 682002.5625 | K82: 77 | L82: =G79 -> 132382.5938 | M82: 220000.7812 | O82: -423336.4298 | P82: -591740.3113 | R82: 1.792137328e+11 | S82: 3.50156596e+11 | U82: 2.505052307e+11 | W82: 200226.9777 | X82: -67844.38397 | Y82: 4602860436 | Z82: -355492.0458 | AA82: 1.263745946e+11 | AK82: 26647.97108 | AL82: 0.712319223 | AO82: 0.712319223 | AP82: 3.645275973
A83: 81 | B83: 767325 | C83: 1020000 | E83: 81 | F83: 13 | G83: 776812.4375 | H83: 1299170 | K83: 78 | L83: =G80 -> 399076.5 | M83: 700000 | O83: -156642.5235 | P83: -111741.0925 | R83: 2.453688017e+10 | S83: 1.248607175e+10 | U83: 1.750340671e+10 | W83: 488589.7967 | X83: -89513.2967 | Y83: 8012630285 | Z83: -67129.22682 | AA83: 4506333094 | AK83: 30663.62518 | AL83: 0.6889967881 | AO83: 0.6889967881 | AP83: 5.046853398
A84: 82 | B84: 283836.8438 | C84: 618000.5625 | E84: 82 | F84: 213 | G84: 581826.6875 | H84: 641000.875 | K84: 79 | L84: =G81 -> 491573.8438 | M84: 1100000 | O84: -64145.17977 | P84: 288258.9075 | R84: 4114604087 | S84: 8.309319775e+10 | U84: -1.849041944e+10 | W84: 728892.537 | X84: -237318.6932 | Y84: 5.632016215e+10 | Z84: 173173.5134 | AA84: 2.998906576e+10 | AK84: 2875.364883 | AL84: 0.711239661 | AO84: 0.711239661 | AP84: 3.711976656
A85: 83 | B85: 703875.1875 | C85: 1080000.625 | E85: 83 | F85: 250 | G85: 322619.1875 | H85: 563832.6875 | K85: 80 | L85: =G82 -> 467428.1562 | M85: 682002.5625 | O85: =+L85-L$108 -> -88290.86727 | P85: =+M85-M$108 -> -129738.53 | R85: =+O85^2 -> 7795277243 | S85: =+P85^2 -> 1.683208617e+10 | U85: =+O85*P85 -> 1.145472733e+10 | W85: =+$M$112+$M$113*M85 -> 477777.7128 | X85: =+L85-W85 -> -10349.55657 | Y85: =+X85^2 -> 107113321.2 | Z85: =(W85-L$108) -> -77941.31069 | AA85: =(W85-L$108)^2 -> 6074847913 | AK85: 24536.29094 | AL85: 0.6854023729 | AO85: 0.6854023729 | AP85: 5.241051207
A86: 84 | B86: 559917.8125 | C86: 875000.5 | E86: 84 | F86: 1040 | G86: 698656.375 | H86: 968617 | K86: 81 | L86: =G83 -> 776812.4375 | M86: 1299170 | O86: 221093.414 | P86: 487428.9075 | R86: 4.888229771e+10 | S86: 2.375869399e+11 | U86: 1.077673212e+11 | W86: 848545.2789 | X86: -71732.84141 | Y86: 5145600537 | Z86: 292826.2554 | AA86: 8.574721585e+10 | AK86: 145475.6598 | AL86: 0.5217238338 | AO86: 0.5217238338 | AP86: 0.8796349751
A87: 85 | B87: 468333.5625 | C87: 705476.5 | E87: 85 | F87: 880 | G87: 366465.9062 | H87: 800002.5625 | K87: 82 | L87: =G84 -> 581826.6875 | M87: 641000.875 | O87: 26107.66398 | P87: -170740.2175 | R87: 681610118.7 | S87: 2.915222187e+10 | U87: -4457628227 | W87: 453145.6682 | X87: 128681.0193 | Y87: 1.655880474e+10 | Z87: -102573.3553 | AA87: 1.052129323e+10 | AK87: 62335.51716 | AL87: 0.6246680897 | AO87: 0.6246680897 | AP87: 6.016253843
A88: 86 | B88: 446948.2188 | C88: 1029802.5 | E88: 86 | F88: 1092 | G88: 379919.75 | H88: 581348 | K88: 83 | L88: =G85 -> 322619.1875 | M88: 563832.6875 | O88: -233099.836 | P88: -247908.405 | R88: 5.433553355e+10 | S88: 6.145857727e+10 | U88: 5.778740855e+10 | W88: 406786.3509 | X88: -84167.16337 | Y88: 7084111390 | Z88: -148932.6726 | AA88: 2.218094098e+10 | AK88: 26269.21085 | AL88: 0.6612328532 | AO88: 0.6612328532 | AP88: 6.19984693
A89: 87 | B89: 221570.4844 | C89: 248200.9531 | E89: 87 | F89: 1094 | G89: 903778.5 | H89: 1048000.562 | K89: 84 | L89: =G86 -> 698656.375 | M89: 968617 | O89: 142937.3515 | P89: 156875.9075 | R89: 2.043108645e+10 | S89: 2.461005035e+10 | U89: 2.242342673e+10 | W89: 649963.2997 | X89: 48693.07535 | Y89: 2371015587 | Z89: 94244.27614 | AA89: 8881983584 | AK89: 8905.125351 | AL89: 0.7220999441 | AO89: 0.7220999441 | AP89: 3.051273782
A90: 88 | B90: 830163.1875 | C90: 1271152 | E90: 88 | F90: 1067 | G90: 284409.0938 | H90: 534996.5625 | K90: 85 | L90: =G87 -> 366465.9062 | M90: 800002.5625 | O90: -189253.1173 | P90: -11738.53 | R90: 3.581674239e+10 | S90: 137793086.6 | U90: 2221553395 | W90: 548667.0212 | X90: -182201.115 | Y90: 3.319724629e+10 | Z90: -7052.002314 | AA90: 49730736.64 | AK90: 55501.67625 | AL90: 0.6686706222 | AO90: 0.6686706222 | AP90: 5.981982346
A91: 89 | B91: 736880.4375 | C91: 1316601 | E91: 89 | F91: 182 | G91: 165575.8906 | H91: 374485 | K91: 86 | L91: =G88 -> 379919.75 | M91: 581348 | O91: -175799.2735 | P91: -230393.0925 | R91: 3.090538457e+10 | S91: 5.308097707e+10 | U91: 4.050293828e+10 | W91: 417308.7948 | X91: -37389.04485 | Y91: 1397940675 | Z91: -138410.2287 | AA91: 1.91573914e+10 | AK91: 59874.30616 | AL91: 0.6438317986 | AO91: 0.6438317986 | AP91: 6.378279448
A92: 90 | B92: 591055.9375 | C92: 925001.125 | E92: 90 | F92: 638 | G92: 461817.4375 | H92: 600000.75 | K92: 87 | L92: =G89 -> 903778.5 | M92: 1048000.562 | O92: 348059.4765 | P92: 236259.47 | R92: 1.211453992e+11 | S92: 5.581853716e+10 | U92: 8.223234744e+10 | W92: 697653.5187 | X92: 206124.9813 | Y92: 4.248750794e+10 | Z92: 141934.4951 | AA92: 2.014540091e+10 | AK92: 31744.90153 | AL92: 0.686905989 | AO92: 0.686905989 | AP92: 5.160997522
A93: 91 | B93: 695913.6875 | C93: 717001.125 | E93: 91 | F93: 792 | G93: 200074.625 | H93: 784881 | K93: 88 | L93: =G90 -> 284409.0938 | M93: 534996.5625 | O93: -271309.9298 | P93: -276744.53 | R93: 7.360907799e+10 | S93: 7.658753488e+10 | U93: 7.5083539e+10 | W93: 389462.8512 | X93: -105053.7575 | Y93: 1.103629196e+10 | Z93: -166256.1723 | AA93: 2.764111482e+10 | AK93: 43842.03227 | AL93: 0.6451528128 | AO93: 0.6451528128 | AP93: 6.381881932
A94: 92 | B94: 626795.9375 | C94: 796001.125 | E94: 92 | F94: 787 | G94: 534228.4375 | H94: 560001.125 | K94: 89 | L94: =G91 -> 165575.8906 | M94: 374485 | O94: -390143.1329 | P94: -437256.0925 | R94: 1.522116641e+11 | S94: 1.911928904e+11 | U94: 1.705924618e+11 | W94: 293034.4305 | X94: -127458.5398 | Y94: 1.624567937e+10 | Z94: -262684.5931 | AA94: 6.900319543e+10 | AK94: 3211.674331 | AL94: 0.7413594202 | AO94: 0.7413594202 | AP94: 2.001151362
A95: 93 | B95: 183991.3281 | C95: 300002.5938 | E95: 93 | F95: 56 | G95: 362864.5938 | H95: 440000 | K95: 90 | L95: =G92 -> 461817.4375 | M95: 600000.75 | O95: -93901.58602 | P95: -211740.3425 | R95: 8817507856 | S95: 4.483397264e+10 | U95: 1.988275398e+10 | W95: 428514.5622 | X95: 33302.8753 | Y95: 1109081504 | Z95: -127204.4613 | AA95: 1.618097498e+10 | AK95: 54003.94275 | AL95: 0.6688782549 | AO95: 0.6688782549 | AP95: 5.974797542
A96: 94 | B96: 435052.4375 | C96: 750002.5625 | E96: 94 | F96: 568 | G96: 265378.8438 | H96: 765384 | K96: 91 | L96: =G93 -> 200074.625 | M96: 784881 | O96: -355644.3985 | P96: -26860.0925 | R96: 1.264829382e+11 | S96: 721464569.1 | U96: 9552641441 | W96: 539582.6389 | X96: -339508.0139 | Y96: 1.152656915e+11 | Z96: -16136.38458 | AA96: 260382907.3 | AK96: 80960.07512 | AL96: 0.5948273934 | AO96: 0.5948273934 | AP96: 4.555424399
A97: 95 | B97: 569475.375 | C97: 615002.5625 | E97: 95 | F97: 531 | G97: 623206.1875 | H97: 865950.5625 | K97: 92 | L97: =G94 -> 534228.4375 | M97: 560001.125 | O97: -21490.58602 | P97: -251739.9675 | R97: 461845287.3 | S97: 6.337301124e+10 | U97: 5410039425 | W97: 404484.5135 | X97: 129743.924 | Y97: 1.683348583e+10 | Z97: -151234.5101 | AA97: 2.287187703e+10 | AK97: 111228.9989 | AL97: 0.5442370512 | AO97: 0.5442370512 | AP97: 1.688747822
A98: 96 | B98: 549875.5 | C98: 618000.5625 | E98: 96 | F98: 355 | G98: 566104.5625 | H98: 594001.25 | K98: 93 | L98: =G95 -> 362864.5938 | M98: 440000 | O98: -192854.4298 | P98: -371741.0925 | R98: 3.719283108e+10 | S98: 1.381914399e+11 | U98: 7.169191641e+10 | W98: 332393.0155 | X98: 30471.57823 | Y98: 928517079.7 | Z98: -223326.008 | AA98: 4.987450585e+10 | AK98: 102681.6775 | AL98: 0.5699716411 | AO98: 0.5699716411 | AP98: 3.036296332
A99: 97 | B99: 82834.50781 | C99: 135000.5469 | E99: 97 | F99: 438 | G99: =VLOOKUP(F99,$A$3:$C$1133,2,FALSE) -> 467231.0938 | H99: 609700.6875 | K99: 94 | L99: =G96 -> 265378.8438 | M99: 765384 | O99: -290340.1798 | P99: -46357.0925 | R99: 8.429741999e+10 | S99: 2148980025 | U99: 1.345932657e+10 | W99: 527869.6826 | X99: -262490.8389 | Y99: 6.890144049e+10 | Z99: -27849.3409 | AA99: 775585788.4 | AK99: 22057.55613 | AL99: 0.6597562789 | AO99: 0.6597562789 | AP99: 6.23352312
A100: 98 | B100: 317168 | C100: 780000.875 | E100: 98 | F100: 227 | G100: 613820.6875 | H100: 871781.625 | K100: 95 | L100: =G97 -> 623206.1875 | M100: 865950.5625 | O100: 67487.16398 | P100: 54209.47 | R100: 4554517303 | S100: 2938666638 | U100: 3658443391 | W100: 588285.734 | X100: 34920.45351 | Y100: 1219438073 | Z100: 32566.71047 | AA100: 1060590631 | AK100: 71197.78282 | AL100: 0.6276528335 | AO100: 0.6276528335 | AP100: 6.108896972
A101: 99 | B101: 1091637.375 | C101: 1402001.75 | E101: 99 | F101: 435 | G101: 347880.3438 | H101: 438501 | K101: 96 | L101: =G98 -> 566104.5625 | M101: 594001.25 | O101: 10385.53898 | P101: -217739.8425 | R101: 107859420 | S101: 4.741063901e+10 | U101: -2261345623 | W101: 424910.3215 | X101: 141194.241 | Y101: 1.99358137e+10 | Z101: -130808.702 | AA101: 1.711091653e+10 | AK101: 51230.35017 | AL101: 0.6366541721 | AO101: 0.6366541721 | AP101: 6.309290961
A102: 100 | B102: 295075.5312 | C102: 356000.875 | E102: 100 | F102: 1037 | G102: 487039.0625 | H102: 1020000 | K102: 97 | L102: =G99 -> 467231.0938 | M102: 609700.6875 | O102: -88487.92977 | P102: -202040.405 | R102: 7830113714 | S102: 4.082032525e+10 | U102: 1.787813717e+10 | W102: 434341.8661 | X102: 32889.22765 | Y102: 1081701295 | Z102: -121377.1574 | AA102: 1.473241434e+10 | AK102: 10678.94122 | AL102: 0.7046708904 | AO102: 0.7046708904 | AP102: 4.118398454
A103: 101 | B103: 300060.6875 | C103: 600000.8125 | K103: 98 | L103: =G100 -> 613820.6875 | M103: 871781.625 | O103: 58101.66398 | P103: 60040.5325 | R103: 3375803358 | S103: 3604865543 | U103: 3488454845 | W103: 591788.7847 | X103: 22031.90277 | Y103: 485404739.5 | Z103: 36069.76122 | AA103: 1301027674 | AK103: 72493.02621 | AL103: 0.6287357262 | AO103: 0.6287357262 | AP103: 6.13939822
A104: 102 | B104: 804474.0625 | C104: 1056000.625 | K104: 99 | L104: =G101 -> 347880.3438 | M104: 438501 | O104: -207838.6798 | P104: -373240.0925 | R104: 4.319691681e+10 | S104: 1.393081666e+11 | U104: 7.757372806e+10 | W104: 331492.481 | X104: 16387.86275 | Y104: 268562045.4 | Z104: -224226.5425 | AA104: 5.027754237e+10 | AK104: 26866.19565 | AL104: 0.6674138367 | AO104: 0.6674138367 | AP104: 6.02423705
A105: 103 | B105: 334999.375 | C105: 473500.6562 | K105: 100 | L105: =G102 -> 487039.0625 | M105: 1020000 | O105: -68679.96102 | P105: 208258.9075 | R105: 4716937045 | S105: 4.337177255e+10 | U105: -1.430321365e+10 | W105: 680831.9889 | X105: -193792.9264 | Y105: 3.755569833e+10 | Z105: 125112.9654 | AA105: 1.565325411e+10 | AK105: 39612.57813 | AL105: 0.6847953047 | AO105: 0.6847953047 | AP105: 5.272858009
A106: 104 | B106: 446500.7812 | C106: 533300.625 | K106: Total | L106: =SUM(L6:L105) -> 55571902.35 | M106: =SUM(M6:M105) -> 81174109.25 | O106: =SUM(O6:O105) -> 2.095475793e-09 | P106: =SUM(P6:P105) -> -9.778887033e-09 | R106: =SUM(R6:R105) -> 7.512566554e+12 | S106: =SUM(S6:S105) -> 1.568842726e+13 | U106: =SUM(U6:U105) -> 9.424930152e+12 | W106: =SUM(W6:W105) -> 55571902.35 | X106: =SUM(X6:X105) -> -3.84170562e-09 | Y106: =SUM(Y6:Y105) -> 1.850475199e+12 | Z106: =SUM(Z6:Z105) -> 5.238689482e-10 | AA106: =SUM(AA6:AA105) -> 5.662091356e+12 | AK106: -28909.25783 | AL106: 0.7241302698 | AO106: 0.7241302698 | AP106: 2.931652779
A107: 105 | B107: 807504.1875 | C107: 976354.9375 | AK107: 161822.2285 | AL107: 0.4840920092 | AO107: 0.4840920092 | AP107: 0.2213153571
A108: 106 | B108: 642482.5 | C108: 748001.9375 | K108: Mean | L108: =AVERAGE(L6:L105) -> 555719.0235 | M108: =AVERAGE(M6:M105) -> 811741.0925 | O108: =AVERAGE(O6:O105) -> 2.095475793e-11 | P108: =AVERAGE(P6:P105) -> -9.778887033e-11 | R108: =AVERAGE(R6:R105) -> 7.512566554e+10 | S108: =AVERAGE(S6:S105) -> 1.568842726e+11 | U108: =AVERAGE(U6:U105) -> 9.424930152e+10 | W108: =AVERAGE(W6:W105) -> 555719.0235 | X108: =AVERAGE(X6:X105) -> -3.84170562e-11 | Y108: =AVERAGE(Y6:Y105) -> 1.850475199e+10 | Z108: =AVERAGE(Z6:Z105) -> 5.238689482e-12 | AA108: =AVERAGE(AA6:AA105) -> 5.662091356e+10 | AK108: 53306.0497 | AL108: 0.6580259032 | AO108: 0.6580259032 | AP108: 6.268766823
A109: 107 | B109: 121497.5156 | C109: 329201.9688 | AK109: 136805.0208 | AL109: 0.553584082 | AO109: 0.553584082 | AP109: 2.131164158
A110: 108 | B110: 1405372.875 | C110: 1460006.125 | O110: Error estándar de la | AK110: 89149.84053 | AL110: 0.5951284688 | AO110: 0.5951284688 | AP110: 4.57342918
A111: 109 | B111: 420978.6875 | C111: 500000.875 | L111: Estimadores MCO de | O111: regresión | S111: Predicted value for | AK111: 25322.23697 | AL111: 0.6649880551 | AO111: 0.6649880551 | AP111: 6.099662964
A112: 110 | B112: 541631.8125 | C112: 640000.875 | M112: =+L108-M113*M108 -> 68060.00123 | P112: =(+Y106/P$113)^0.5 -> 137413.2453 | S112: REN | T112: = | U112: =M108 -> 811741.0925 | W112: =+$M$112+$M$113*U112 -> 555719.0235 | Z112: RESUMEN | AK112: 61295.49921 | AL112: 0.6456200274 | AO112: 0.6456200274 | AP112: 6.382474026
A113: 111 | B113: 454987.3125 | C113: 780000.875 | M113: =+U108/S108 -> 0.6007568507 | O113: n-k-1 | P113: =(K105-2) -> 98 | S113: R2 | T113: = | U113: =1-Y108/R108 -> 0.7536826882 | Z113: beta_0 | AA113: =M112 -> 68060.00123 | AK113: 61175.39015 | AL113: 0.6372210509 | AO113: 0.6372210509 | AP113: 6.317741747
A114: 112 | B114: 726676.5 | C114: 812000.5625 | Z114: beta_1 | AA114: =M113 -> 0.6007568507 | AK114: 45960.14427 | AL114: 0.6730046596 | AO114: 0.6730046596 | AP114: 5.820448571
A115: 113 | B115: 366814.6875 | C115: 413300.5312 | K115: Error estándar de los estimadores | Z115: se(beta_0) | AA115: =M117 -> 31335.22653 | AK115: 44097.57483 | AL115: 0.6605287909 | AO115: 0.6605287909 | AP115: 6.216314414
A116: 114 | B116: 579574.125 | C116: 688000.625 | Z116: se(beta_1) | AA116: =M119 -> 0.03469276324 | AK116: 88141.63135 | AL116: 0.6034482211 | AO116: 0.6034482211 | AP116: 5.053527189
A117: 115 | B117: 540677.375 | C117: 600000.625 | M117: =+P$112*((S$108+M$108^2)/S$106)^0.5 -> 31335.22653 | Z117: error estandar de | AK117: 49652.0655 | AL117: 0.6664482164 | AO117: 0.6664482164 | AP117: 6.055241721
A118: 116 | B118: 357439.7812 | C118: 522855.1562 | Z118: la regresion | AA118: =P112 -> 137413.2453 | AK118: 26492.99156 | AL118: 0.6996964604 | AO118: 0.6996964604 | AP118: 4.422906653
A119: 117 | B119: 187660.7656 | C119: 213740.7812 | M119: =P$112*(1/S$106)^0.5 -> 0.03469276324 | Z119: R-cuadrado | AA119: =U113 -> 0.7536826882 | AK119: 38877.4165 | AL119: 0.6619471794 | AO119: 0.6619471794 | AP119: 6.182382216
A120: 118 | B120: 604996.4375 | C120: 807124.8125 | O120: donde | Z120: Media de y | AA120: =L108 -> 555719.0235 | AK120: 62245.07414 | AL120: 0.6271480335 | AO120: 0.6271480335 | AP120: 6.094105233
A121: 119 | B121: 176085.875 | C121: 540000.8125 | Z121: Desviación tipica de y | AA121: =S136 -> 275471.4335 | AK121: 42365.53475 | AL121: 0.6576545274 | AO121: 0.6576545274 | AP121: 6.275729849
A122: 120 | B122: 426956.125 | C122: 464678.7812 | AK122: 106702.4726 | AL122: 0.5819135102 | AO122: 0.5819135102 | AP122: 3.763252716
A123: 121 | B123: 355998.125 | C123: 431200.5312 | AK123: 48639.2543 | AL123: 0.649740367 | AO123: 0.649740367 | AP123: 6.372263492
A124: 122 | B124: 354409.1875 | C124: 400001.25 | AK124: 90068.11287 | AL124: 0.6267425666 | AO124: 0.6267425666 | AP124: 6.081962811
A125: 123 | B125: 724588.75 | C125: 1200000.75 | AK125: 95246.00376 | AL125: 0.5907333638 | AO125: 0.5907333638 | AP125: 4.307583729
A126: 124 | B126: 218616.5 | C126: 301115.75 | AK126: 72923.06938 | AL126: 0.5998751684 | AO126: 0.5998751684 | AP126: 4.851977895
A127: 125 | B127: 695278.125 | C127: 785447.75 | AK127: 92282.54666 | AL127: 0.6183929834 | AO127: 0.6183929834 | AP127: 5.782871552
A128: 126 | B128: 538942.9375 | C128: 705000.8125 | AK128: 47858.41148 | AL128: 0.6606921211 | AO128: 0.6606921211 | AP128: 6.212560576
A129: 127 | B129: 399858 | C129: 519426.75 | AK129: 72819.43086 | AL129: 0.6265450347 | AO129: 0.6265450347 | AP129: 6.075963512
A130: 128 | B130: 901249.75 | C130: 934000.75 | AK130: 20585.03784 | AL130: 0.7028118827 | AO130: 0.7028118827 | AP130: 4.232799314
A131: 129 | B131: 1025018.812 | C131: 1242843.75 | S131: =(R106/99) -> 7.588451065e+10 | U131: En gretl o Eviews | AK131: 48434.49663 | AL131: 0.6615939654 | AO131: 0.6615939654 | AP131: 6.19111293
A132: 130 | B132: 477900.5312 | C132: 620001.125 | AK132: -10563.4537 | AL132: 0.7411707419 | AO132: 0.7411707419 | AP132: 2.010364002
A133: 131 | B133: 240015.2188 | C133: 402001.125 | AK133: 30545.47009 | AL133: 0.6688073395 | AO133: 0.6688073395 | AP133: 5.977257904
A134: 132 | B134: 428060.6562 | C134: 560000.625 | AK134: 67877.72926 | AL134: 0.6036944475 | AO134: =AL134 -> 0.6036944475 | AP134: =_xlfn.NORM.DIST(AO134,AL$1005,AL$1007,FALSE) -> 5.067110915
A135: 133 | B135: 1084086.875 | C135: 1730000.625 | AK135: 84612.16834 | AL135: 0.5975062802 | AO135: 0.5975062802 | AP135: 4.714304264
A136: 134 | B136: 622795.375 | C136: 718001.0625 | S136: =SQRT(S131) -> 275471.4335 | U136: En gretl o Eviews | AK136: 10042.20198 | AL136: 0.6756096443 | AO136: 0.6756096443 | AP136: 5.712234284
A137: 135 | B137: 439084.3125 | C137: 480000.6562 | AK137: 111544.4166 | AL137: 0.5500741435 | AO137: 0.5500741435 | AP137: 1.957984428
A138: 136 | B138: 218236 | C138: 229200.6406 | AK138: 27638.8529 | AL138: 0.6784265174 | AO138: 0.6784265174 | AP138: 5.586550193
A139: 137 | B139: 520215 | C139: 888000.625 | AK139: 71944.99597 | AL139: 0.6244236855 | AO139: 0.6244236855 | AP139: 6.008123429
A140: 138 | B140: 276854.5 | C140: 356000.6562 | AK140: 35193.1586 | AL140: 0.7092529657 | AO140: 0.7092529657 | AP140: 3.83493944
A141: 139 | B141: 551286 | C141: 1020000.625 | AK141: 36004.76646 | AL141: 0.6885867839 | AO141: 0.6885867839 | AP141: 5.069483322
A142: 140 | B142: 444887.3438 | C142: 978006.0625 | AK142: 77743.68022 | AL142: 0.6054477169 | AO142: 0.6054477169 | AP142: 5.162579241
A143: 141 | B143: 186671.8438 | C143: 247106.0625 | AK143: 53572.60096 | AL143: 0.6517930841 | AO143: 0.6517930841 | AP143: 6.356865037
A144: 142 | B144: 545256.8125 | C144: 865006.0625 | AK144: 29834.5258 | AL144: 0.6768973495 | AO144: 0.6768973495 | AP144: 5.655857195
A145: 143 | B145: 354421.5312 | C145: 918006.0625 | AK145: 16259.54601 | AL145: 0.7032920653 | AO145: 0.7032920653 | AP145: 4.203304762
A146: 144 | B146: 1186397.125 | C146: 1235406.125 | I146: ©Este fichero Excel ha sido preparado por el profesor Víctor E. Barrios para sus alumnos de la titulación de GFIC de la Universidad de Valencia | AK146: -5434.760005 | AL146: 0.7363699264 | AO146: 0.7363699264 | AP146: 2.252676675
A147: 145 | B147: 684638.1875 | C147: 845207.5625 | AK147: 46456.37553 | AL147: 0.6294299879 | AO147: 0.6294299879 | AP147: 6.158060682
A148: 146 | B148: 637985.1875 | C148: 844000.5625 | AK148: 101299.9069 | AL148: 0.5543533737 | AO148: 0.5543533737 | AP148: 2.170207473
A149: 147 | B149: 479658.4688 | C149: 840000.5625 | AK149: 5132.442653 | AL149: 0.7543113307 | AO149: 0.7543113307 | AP149: 1.428527496
A150: 148 | B150: 555432.1875 | C150: 840000.6875 | AK150: 67430.32448 | AL150: 0.6374067661 | AO150: 0.6374067661 | AP150: 6.320399708
A151: 149 | B151: 1053025.25 | C151: 1427413.625 | AK151: 78661.79478 | AL151: 0.6015507679 | AO151: 0.6015507679 | AP151: 4.947487185
A152: 150 | B152: 322858.3438 | C152: 390000.6562 | AK152: 36408.06333 | AL152: 0.7075225918 | AO152: 0.7075225918 | AP152: 3.942105424
A153: 151 | B153: 330899.0625 | C153: 565830.8125 | AK153: 88291.57479 | AL153: 0.6188671311 | AO153: 0.6188671311 | AP153: 5.802227434
A154: 152 | B154: 331974.0625 | C154: 361976.8438 | AK154: 101413.6382 | AL154: 0.5458718468 | AO154: 0.5458718468 | AP154: 1.761731032
A155: 153 | B155: 567794.25 | C155: 816280.8125 | AK155: 108314.2723 | AL155: 0.5318869275 | AO155: 0.5318869275 | AP155: 1.19991799
A156: 154 | B156: 253359.2812 | C156: 260000.5312 | AK156: 116642.349 | AL156: 0.559980193 | AO156: 0.559980193 | AP156: 2.467000412
A157: 155 | B157: 1085646.875 | C157: 1200000.5 | AK157: 19290.19574 | AL157: 0.7026646175 | AO157: 0.7026646175 | AP157: 4.241836112
A158: 156 | B158: 613962.8125 | C158: 976000.625 | AK158: 72239.98128 | AL158: 0.6533360323 | AO158: 0.6533360323 | AP158: 6.340811197
A159: 157 | B159: 502499.5 | C159: 560000.625 | AK159: 20989.25432 | AL159: 0.679768481 | AO159: 0.679768481 | AP159: 5.523703427
A160: 158 | B160: 996776.375 | C160: 1847168.625 | AK160: 62393.32241 | AL160: 0.6680272266 | AO160: 0.6680272266 | AP160: 6.003880201
A161: 159 | B161: 797399.875 | C161: 1171000.5 | AK161: 105344.4729 | AL161: 0.5507410113 | AO161: 0.5507410113 | AP161: 1.990251039
A162: 160 | B162: 394838.9375 | C162: 520000.5312 | AK162: 37770.65976 | AL162: 0.6978401796 | AO162: 0.6978401796 | AP162: 4.534855046
A163: 161 | B163: 259739.0938 | C163: 356000.5312 | AK163: 10162.36554 | AL163: 0.7041643719 | AO163: 0.7041643719 | AP163: 4.149622719
A164: 162 | B164: 659402.9375 | C164: 1272400.5 | AK164: 105414.7934 | AL164: 0.5724858784 | AO164: 0.5724858784 | AP164: 3.186309885
A165: 163 | B165: 734485 | C165: 1200000.5 | AK165: 37038.12673 | AL165: 0.6676489858 | AO165: 0.6676489858 | AP165: 6.016493392
A166: 164 | B166: 531188.125 | C166: 716000.5625 | AK166: 133244.6558 | AL166: 0.547298494 | AO166: 0.547298494 | AP166: 1.826972844
A167: 165 | B167: 996631.125 | C167: 1100000.5 | AK167: 123069.5593 | AL167: 0.5245616103 | AO167: 0.5245616103 | AP167: 0.9618580664
A168: 166 | B168: 389334.6875 | C168: 900000.875 | AK168: 55679.21585 | AL168: 0.6496518003 | AO168: 0.6496518003 | AP168: 6.372774032
A169: 167 | B169: 191743.5938 | C169: 224000.875 | AK169: -24851.05436 | AL169: 0.7635645217 | AO169: 0.7635645217 | AP169: 1.093659458
A170: 168 | B170: 598241.8125 | C170: 1225000.875 | AK170: 31317.2731 | AL170: 0.691325089 | AO170: 0.691325089 | AP170: 4.916233468
A171: 169 | B171: 190151.25 | C171: 296000.875 | AK171: 53013.36437 | AL171: 0.6410765681 | AO171: 0.6410765681 | AP171: 6.361621519
A172: 170 | B172: 640030 | C172: 845000.875 | AK172: 30592.77851 | AL172: 0.6740310583 | AO172: 0.6740310583 | AP172: 5.778766305
A173: 171 | B173: 727194.25 | C173: 797408.875 | AK173: 68051.31091 | AL173: 0.6244981828 | AO173: 0.6244981828 | AP173: 6.010610249
A174: 172 | B174: 227203.5312 | C174: 248142.8594 | AK174: 19559.82075 | AL174: 0.6763721284 | AO174: 0.6763721284 | AP174: 5.679075496
A175: 173 | B175: 799721.0625 | C175: 1094000.875 | AK175: 63545.13106 | AL175: 0.621752048 | AO175: 0.621752048 | AP175: 5.914061608
A176: 174 | B176: 490566.4375 | C176: 687316.875 | AK176: 63522.81304 | AL176: 0.6302003559 | AO176: 0.6302003559 | AP176: 6.177943169
A177: 175 | B177: 596990.8125 | C177: 1230000.75 | AK177: 74544.44084 | AL177: 0.6360619807 | AO177: 0.6360619807 | AP177: 6.299921438
A178: 176 | B178: 320282.75 | C178: 330000.5312 | AK178: -851.6606615 | AL178: 0.7048564226 | AO178: 0.7048564226 | AP178: 4.106952739
A179: 177 | B179: 375497.8438 | C179: 800000.5625 | AK179: 40210.59058 | AL179: 0.6568675387 | AO179: 0.6568675387 | AP179: 6.289776992
A180: 178 | B180: 835477.3125 | C180: 852743 | AK180: 61267.76371 | AL180: 0.6401016368 | AO180: 0.6401016368 | AP180: 6.352780063
A181: 179 | B181: 304474.1562 | C181: 545081 | AK181: 84004.46466 | AL181: 0.5893535377 | AO181: 0.5893535377 | AP181: 4.22304427
A182: 180 | B182: 288033.9375 | C182: 645422 | AK182: 72247.47808 | AL182: 0.6326848838 | AO182: 0.6326848838 | AP182: 6.236047287
A183: 181 | B183: 192513.9219 | C183: 215901 | AK183: 64613.36185 | AL183: 0.6124239827 | AO183: 0.6124239827 | AP183: 5.517429694
A184: 182 | B184: 165575.8906 | C184: 374485 | AK184: 9500.446324 | AL184: 0.6977988403 | AO184: 0.6977988403 | AP184: 4.537334567
A185: 183 | B185: 193949.0938 | C185: 314260.8438 | AK185: -34456.65242 | AL185: 0.7879563 | AO185: 0.7879563 | AP185: 0.4869331158
A186: 184 | B186: 173130.8281 | C186: 272970.8438 | AK186: 33784.98219 | AL186: 0.698290092 | AO186: 0.698290092 | AP186: 4.507829341
A187: 185 | B187: 366911.375 | C187: 420000.5312 | AK187: -38744.78598 | AL187: 0.7917877227 | AO187: 0.7917877227 | AP187: 0.4229211686
A188: 186 | B188: 227462.875 | C188: 242000.875 | AK188: 71439.80569 | AL188: 0.6501894272 | AO188: 0.6501894272 | AP188: 6.369478714
A189: 187 | B189: 242387.1094 | C189: 363132.875 | AK189: 23017.35284 | AL189: 0.6985775084 | AO189: 0.6985775084 | AP189: 4.490527156
A190: 188 | B190: 140519.4375 | C190: 162000.875 | AK190: 123755.1334 | AL190: 0.5559137134 | AO190: 0.5559137134 | AP190: 2.250561519
A191: 189 | B191: 440902.5 | C191: 616500.8125 | AK191: 74633.18403 | AL191: 0.5955946254 | AO191: 0.5955946254 | AP191: 4.601235933
A192: 190 | B192: 918233.125 | C192: 1221000.75 | AK192: -5218.494643 | AL192: 0.7388821961 | AO192: 0.7388821961 | AP192: 2.124001119
A193: 191 | B193: 206004.5625 | C193: 470000.5625 | AK193: 61115.44369 | AL193: 0.6142052389 | AO193: 0.6142052389 | AP193: 5.600685206
A194: 192 | B194: 231948.2656 | C194: 355000.5625 | AK194: 79198.52423 | AL194: 0.6001501358 | AO194: 0.6001501358 | AP194: 4.86776357
A195: 193 | B195: 624357.375 | C195: 1021723.562 | AK195: 79975.62451 | AL195: 0.6164055401 | AO195: 0.6164055401 | AP195: 5.698869863
A196: 194 | B196: 545229.375 | C196: 1068035.5 | AK196: 41114.06268 | AL196: 0.6734253836 | AO196: 0.6734253836 | AP196: 5.803515914
A197: 195 | B197: 571983.875 | C197: 780000.5625 | AK197: 71043.62511 | AL197: 0.6142236888 | AO197: 0.6142236888 | AP197: 5.601530288
A198: 196 | B198: 343371.4062 | C198: 390000.5625 | AK198: -39343.03308 | AL198: 0.808922092 | AO198: =AL198 -> 0.808922092 | AP198: =_xlfn.NORM.DIST(AO198,AL$1005,AL$1007,FALSE) -> 0.2150588549
A199: 197 | B199: 520518.1875 | C199: 650000.5625 | AK199: 90386.72373 | AL199: 0.5765938311 | AO199: 0.5765938311 | AP199: 3.43554476
A200: 198 | B200: 545589.5625 | C200: 592850.6875 | AK200: -15802.47802 | AL200: 0.7868204308 | AO200: 0.7868204308 | AP200: 0.5073434656
... 933 more rows
